Workbook

Sheet Титульный
F2: Версия 1.0.6
E4: Расчет фактических значений показателей надежности и качества
E6: Субъект РФ | F6: Ханты-Мансийский автономный округ - Югра
E8: Период регулирования | F8: 2021
E10: Наименование организации | F10: АО "ЮРЭСК"
F12: Должностное лицо, ответственное за составление формы
E13: Фамилия, имя, отчество | F13: Шпинглер Алексей Валерьевич
E14: Должность | F14: Заместитель начальника ОТЭЭ
E15: Контактный телефон | F15: 8 34675 31-85-95 доб. 9-1415
E16: e-mail | F16: Shpinglerav@yuresk.ru

Sheet СВОД
B3: I - Расчет показателя уровня надежности оказываемых услуг
B4: Показатель | C4: Ед.изм. | D4: Значение
D5: факт
B6: 1 | C6: 2 | D6: 3
B7: Показатель средней продолжительности прекращения передачи электрической энергии на точку поставки в каждом расчетном периоде регулирования в пределах долгосрочного периода регулирования (Пsaidi) | C7: час | D7: 0.06844
B8: Показатель средней частоты прекращения передачи электрической энергии на точку поставки в каждом расчетном периоде регулирования в пределах долгосрочного периода регулирования (Пsaifi) | C8: шт | D8: 0.04588
B9: Максимальное за год число точек поставки потребителей услуг сетевой организации | C9: шт | D9: 112292
B11: II - Расчет показателя уровня качества осуществляемого технологического присоединения к сети
B12: Показатель | C12: плановое значение | D12: фактическое значение
B13: 1. Показатель качства рассмотрения заявок на техлологическое присоединение к сети | C13: Число, шт. | D13: Число, шт.
B14: 1.1.Число заявок на технологическое присоединение к сети, поданных в соответствии с требованиями нормативных правовых актов, по которым сетевой организацией в соответствующий расчетный период направлен проек договра об осуществлении технологического присоединения заявителя к сети, шт. (Nзаяв_тпр) | C14: 0 | D14: 3073
B15: 1.2.Число заявок на технологическое присоединение к сети, поданных в соответствии с требованиями нормативных правовых актов, по которым сетевой организацией в соответствующий расчетный период направлен проек договра об осуществлении технологического присоединения к сети с нарушением установленных сроков его направления, шт. нс (N заяв_тпр) | C15: 0 | D15: 202
B16: 2. Итого показатель качества рассмотрения заявок на технологическое присоединение к сети (П заяв_тпр) | C16: =C14/MAX(1,(C14-C15)) -> 0.0000 | D16: =D14/MAX(1,(D14-D15)) -> 1.0704
B17: 3. Показатель качства рассмотрения заявок на техлологическое присоединение к сети
B18: 3.1.Число договорв об осуществлении технологического присоединения заявителей к сети, исполненных в соответствующем расчетном периоде, по которым имеется подписанный сторонами акт о технологическом присоединении, шт. (Nсд_тпр) | C18: 0 | D18: 2906
B19: 3.2.Число договорв об осуществлении технологического присоединения заявителей к сети, исполненных в соответствующем расчетном периоде, по которым имеется подписанный сторонами акт о технологическом присоединении, по которым произошло нарушение установленных сроков технологического присоединения, шт. 11 нс (N сд_тпр) | C19: 0 | D19: 322
B20: 4. Итого показатель качества исполнения договоров об осуществлении технологического присоединение заявителей к сети (П нс_тпр) | C20: =C18/MAX(1,(C18-C19)) -> 0.0000 | D20: =D18/MAX(1,(D18-D19)) -> 1.1246
B21: 5. Показатель качства рассмотрения заявок на техлологическое присоединение к сети
B22: 5.1Число вступивших в законную силу решений антимонопольного законодательства и (или) суда об установлении нарушений сетевой организацией требований антимонопольного законодательства РФ в части оказания услуг по технологическому присоединению в соответствующем расчетном периоде, шт. (Nн_тпр) | C22: 0 | D22: 0
B23: 5.2.Общее число заявок на технологическое присоединение к сети, поданных заявителями в соответствующий расчетнгый период, в десятках шт. без округления (Nочз_тпр) | C23: 0 | D23: 376.2
B24: 6.Показатель соблюдения антимонопольного законодательства при технологическом присоединении к электрическим сетям сетевой организации (П нпа_тпр) | C24: =C23/MAX(1,(C23-C22)) -> 0.0000 | D24: =D23/MAX(1,(D23-D22)) -> 1.0000
B25: Показатель уровня качества оказываемых услуг ТСО | C25: =IF((C16*0.5+C20*0.5)=0,0,IF((C16*0.5+C20*0.5)<1,1,(C16*0.5+C20*0.5))) -> 0.0000 | D25: =IF((D16*0.5+D20*0.5)=0,0,IF((D16*0.5+D20*0.5)<1,1,(D16*0.5+D20*0.5))) -> 1.0975
C26: =C16*0.4+C20*0.4+C24*0.2 -> 0 | D26: =D16*0.4+D20*0.4+D24*0.2 -> 1.077988705
B28: III - СВОД ПО ПОКАЗАТЕЛЯМ НАДЕЖНОСТИ И КАЧЕСТВА И РАСЧЕТ ОБОБЩЕННОГО ПОКАЗАТЕЛЯ
B29: Показатель | C29: Ед.изм. | D29: Значение показателей надежности и качества | F29: Коэффициент допустимого отклонения показателя надежности и качества | G29: Отметка о достижении показателя надежности и качества | H29: Отметка о достоверности отчетных данных | I29: Определение коэффициентов надежности и качества
D30: плановое | E30: фактическое
B31: Показатель средней продолжительности прекращения (Пsaidi) | C31: - | D31: =SUMIFS(TEHSHEET!S2:S219,TEHSHEET!Q2:Q219,Титульный!F10,TEHSHEET!R2:R219,Титульный!F8) -> 0.0040 | E31: =D7 -> 0.0684 | F31: 30% | G31: =IF(AND(E31=0,D31=0),"достигнуто",IF(E31<=D31*(1-F31),"достигнуто с улучшением",IF(E31<=D31*(1+F31),"достигнуто","не достигнуто"))) -> не достигнуто | H31: + | I31: =IF(H31="-",-1,IF(G31="достигнуто",0,IF(G31="не достигнуто",-1,1))) -> -1
B32: Показатель средней частоты прекращения (Пsaifi) | C32: - | D32: =SUMIFS(TEHSHEET!T2:T219,TEHSHEET!Q2:Q219,Титульный!F10,TEHSHEET!R2:R219,Титульный!F8) -> 0.0425 | E32: =D8 -> 0.0459 | F32: =F31 -> 30% | G32: =IF(AND(E32=0,D32=0),"достигнуто",IF(AND(E32<=D32*(1-F32),D32),"достигнуто с улучшением",IF(E32<=D32*(1+F32),"достигнуто","не достигнуто"))) -> достигнуто | H32: + | I32: =IF(H32="-",-1,IF(G32="достигнуто",0,IF(G32="не достигнуто",-1,1))) -> 0
B33: Показатель уровня качества осуществляемого технологического присоединения к сети (Птпр) | C33: - | D33: =SUMIFS(TEHSHEET!U2:U219,TEHSHEET!Q2:Q219,Титульный!F10,TEHSHEET!R2:R219,Титульный!F8) -> 1.1566 | E33: =D25 -> 1.0975 | F33: =$F$31 -> 30% | G33: =IF(AND(E33=0,D33=0),"достигнуто",IF(AND(E33<=D33*(1-F33),D33),"достигнуто с улучшением",IF(E33<=D33*(1+F33),"достигнуто","не достигнуто"))) -> достигнуто | H33: + | I33: =IF(H33="-",-1,IF(G33="достигнуто",0,IF(G33="не достигнуто",-1,1))) -> 0
B35: Значения обобщенного показателя надежности и качества
B36: ТСО | C36: =I31*C40+I32*D40+I33*E40 -> -0.30
B38: Коэффициенты значимости коэффициентов надежности и качества
B39: Организация | C39: Коэффициенты надежности | E39: Коэффициент качества
B40: ТСО | C40: 0.30 | D40: 0.30 | E40: 0.30
B42: IV - Расчет корректировки НВВ по показателям надежности и качества
B45: Коэффициент корректировки
B46: Процент корректрировки на текущий год при представлении достоверных отчетных данных | C46: =2%*C36 -> -0.60%
B49: Справочно:
B50: Коэффициент корректировки в случае непредставления отчетных данных | C50: -3.00%
B51: Предельный процент отклонения отчетных данных организации от данных Технадзора, ФАС, Фед. Службы по защите прав потребителей, Системного Оператора, при превышении которого, данные признаются недостоверными
B52: на 2013 год и далее | C52: 10.00%
B53: При представлении для расчета какого-либо показателя недостоверных отчетных данных, индикатор выполнения по показателю (Кнад и/или Ккач1, Ккач2) признается равным -1

Sheet Форма 1.3.
B2: Форма 1.3. Расчет показателя средней продолжительности прекращения передачи электрической энергии потребителям услуг и показателя средней частоты прекращений передачи электрической энергии потребителям услуг сетевой организации
B4: № п/п | C4: Наименование составляющей показателя | D4: Метод определения | E4: Примечания
B5: 1 | C5: Максимальное за расчетный период регулирования число точек поставки потребителей услуг сетевой организации, шт. | D5: 112292 | E5: В соответствии с заключенными договорами по передаче электроэнергии
B6: 2 | C6: Средняя продолжительность прекращения передачи электрической энергии на точку поставки (Пsaidi), час | D6: =IF(ISERR(SUMPRODUCT((Столбец9*Столбец13)*(Столбец8="В")*(Столбец27=1))/D$5),0,SUMPRODUCT((Столбец9*Столбец13)*(Столбец8="В")*(Столбец27=1))/D$5) -> 0.06844 | E6: Сумма произведений по столбцу 9 и столбцу 13 формы 8.1, деленная на значение пункта 1 Формы 1.3 (Σ столбец 9 * столбец 13) / пункт 1 формы 1.3). При этом учитываются только события, по которым значения в столбце 8 равны "В", а в столбце 27 равны "1"
B7: 3 | C7: Средняя частота прекращений передачи электрической энергии на точку поставки (Пsaifi), шт. | D7: =IF(ISERR(SUMIFS(Столбец13,Столбец8,"В",Столбец27,1)/D$5),0,SUMIFS(Столбец13,Столбец8,"В",Столбец27,1)/D$5) -> 0.04588 | E7: Сумма по столбцу 13 формы 8.1 и деленная на значение пункта 1 формы 1.3 (Σ столбец 13 формы 8.1 / пункт 1 формы 1.3). При этом учитываются только события, по которым значения в столбце 8 равны "В", а в столбце 27 равны "1"

Sheet Форма 1.9.
B2: Форма 1.9. Данные об экономических и технических характеристиках и (или) условиях деятельности территориальных сетевых организаций
B4: № п/п | C4: Характеристики и (или) условия деятельности сетевой организации | D4: Значение характеристики | E4: Наименование и реквизиты подтверждающих документов (в том числе внутренних документов сетевой организации)
B5: 1 | C5: Протяженность линий электропередачи в одноцепном выражении (ЛЭП), км | D5: 6108.02
B6: 1.1 | C6: Протяженность кабельных линий электропередачи в одноцепном выражении, км | D6: 1594.04
B7: 2 | C7: Доля кабельных линий электропередачи в одноцепном выражении от общей протяженности линий электропередачи (Доля КЛ), % | D7: 26.1
B8: 3 | C8: Максимальной за год число точек поставки, шт. | D8: 112292
B9: 4 | C9: Число разъединителей и выключателей, шт. | D9: 4932
B10: 5 | C10: Средняя летняя температура, °C | D10: +15
B11: 6 | C11: Номер группы (m) территориальной сетевой организации по показателю Пsaidi | D11: 8 | E11: -
B12: 7 | C12: Номер группы (m) территориальной сетевой организации по показателю Пsaifi | D12: 4 | E12: -

Sheet Форма 8.1.
E2: Форма 8.1. Журнал учета данных первичной информации по всем прекращениям передачи электрической энергии, произошедшим на объектах сетевой организации
C4: Данные о факте прекращения передачи электрической энергии | L4: Данные о масштабе прекращения передачи электрической энергии в сетевой организации | Y4: Перечень смежных сетевых организаций, затронутых прекращением передачи электрической энергии | Z4: Данные о причинах прекращения передачи электрической энергии и их расследовании | AC4: Учет в показателях надежности, в т.ч. индикативных показателях надежности (0 - нет, 1 - да)
C5: Номер прекращения передачи электрической энергии / Номер итоговой строки | D5: Наименование структурной единицы сетевой организации | E5: Вид объекта: КЛ, ВЛ, КВЛ, ПС, ТП, РП | F5: Диспетчерское наименование объекта электросетевого хозяйства сетевой организации, в результате отключения которой произошло прекращение передачи электроэнергии потребителям услуг | G5: Высший класс напряжения отключенного оборудования сетевой организации, кВ | H5: Время и дата начала прекращения передачи электрической энергии (часы, минуты, ГГГГ.ММ.ДД) | I5: Время и дата восстановления режима потребления электрической энергии потребителей услуг (часы, минуты, ГГГГ.ММ.ДД) | J5: Вид прекращения передачи электроэнергии (П, А, В) | K5: Продолжительность прекращения передачи электрической энергии, час | L5: Перечень объектов электросетевого хозяйства, отключение которых привело к прекращению передачи электрической энергии потребителям услуг (ПС, ТП, РП, ВЛ, КЛ) | M5: Перечень потребителей 1-й и 2-й категорий надежности, в отношении которых произошло полное ограничение режима потребления электрической энергии | N5: Перечень потребителей 1-й и 2-й категорий надежности, в отношении которых произошло частичное ограничение режима потребления электрической энергии | O5: Количество точек поставки потребителей услуг сетевой организации, в отношении которых произошел перерыв электроснабжения, шт., в том числе: | X5: Суммарный объем фактической нагрузки (мощности) на присоединениях потребителей услуг, по которым произошло прекращение передачи электрической энергии на момент возникновения такого события, кВт
O6: ВСЕГО | P6: в разделении категорий надежности потребителей электрической энергии | S6: в разделении уровней напряжения ЭПУ потребителя электрической энергии | W6: Смежные сетевые организации и производители электрической энергии | Z6: Номер и дата акта расследования технологического нарушения, записи в оперативном журнале | AA6: Код организационной причины аварии | AB6: Код технической причины повреждения оборудования
P7: 1-я категория надежности | Q7: 2-я категория надежности | R7: 3-я категория надежности | S7: ВН (110 кВ и выше) | T7: СН1 (35 кВ) | U7: СН2 (6-20 кВ) | V7: НН (0,22-1 кВ)
C8: 1 | D8: 2 | E8: 3 | F8: 4 | G8: 5 | H8: 6 | I8: 7 | J8: 8 | K8: 9 | L8: 10 | M8: 11 | N8: 12 | O8: 13 | P8: 14 | Q8: 15 | R8: 16 | S8: 17 | T8: 18 | U8: 19 | V8: 20 | W8: 21 | X8: 22 | Y8: 23 | Z8: 24 | AA8: 25 | AB8: 26 | AC8: 27
C10: 1 | D10: АО ЮРЭСК Няганский филиал | E10: ПС | F10: ПС 110/10 Чара, В-110 Вандмтор-2 | G10: 110 | H10: 16,42 2021.01.14 | I10: 16,54 2021.01.14 | J10: В | K10: 0.2 | L10: ПС | M10: 0 | N10: 0 | O10: 982 | P10: 0 | Q10: 0 | R10: 982 | S10: 0 | T10: 0 | U10: 0 | V10: 982 | W10: 0 | X10: 3114 | Z10: ОЖ 14.01.2021 | AA10: 3.4.1 | AB10: 4.20 | AC10: 1
C11: 2 | D11: АО ЮРЭСК Березовский филиал | E11: ВЛ | F11: ВЛ-110 Игрим-Березово-2 | G11: 110 | H11: 14,18 2021.01.25 | I11: 14,18 2021.01.25 | J11: В | K11: 0 | L11: ВЛ | M11: 0 | N11: 0 | O11: 0 | P11: 0 | Q11: 0 | R11: 0 | S11: 0 | T11: 0 | U11: 0 | V11: 0 | W11: 0 | X11: 0 | Z11: ОЖ 25.01.2021 | AA11: 3.4.14 | AB11: 4.21 | AC11: 0
C12: 3 | D12: АО ЮРЭСК | E12: КВЛ | F12: КПП 6/20 Игрим №11-2114, ВЛЗ-20 Ванзетур | G12: 20 (21) | H12: 14,35 2021.01.28 | I12: 14,46 2021.01.28 | J12: В | K12: 0.183 | L12: ВЛ | M12: 0 | N12: 0 | O12: 181 | P12: 0 | Q12: 0 | R12: 181 | S12: 0 | T12: 0 | U12: 0 | V12: 181 | W12: 0 | X12: 35 | Z12: ОЖ 28.01.2021 | AA12: 3.4.12.2 | AB12: 4.21 | AC12: 0
B13: X | C13: 4 | D13: АО ЮРЭСК Кондинский филиал | E13: ВЛ | F13: ЗРУ-10 НПС Конда-2, ВЛ-10 Катыш (с отпайкой на п. Сотник) | G13: 10 (10.5) | H13: 09,00 2021.01.31 | I13: 11,43 2021.01.31 | J13: В | K13: 2.7167 | L13: КТП 12-330, КТП № 12-300, КТП 12-340 | M13: 0 | N13: 0 | O13: 3 | P13: 0 | Q13: 0 | R13: 3 | S13: 0 | T13: 0 | U13: 0 | V13: 3 | W13: 0 | X13: 134 | Z13: 2021.01.31 09-00 | AA13: 3.4.14 | AB13: 4.14 | AC13: 1
B14: X | C14: 5 | D14: АО ЮРЭСК Советский филиал | E14: ВЛ | F14: ПС 220 кВ Картопья, ВЛ-10 ЛПК-2. | G14: 10 (10.5) | H14: 18,58 2021.02.01 | I14: 20,17 2021.02.01 | J14: А | K14: 1.317 | L14: ТП 16-007,ТП 16-012,ТП 16-031,ТП 16-035,ТП 16-036,ТП 16-037,ТП 16-038,ТП 16-063,ТП 16-066,ТП 16-074,ТП 16-076,ТП 16-111,ТП 16-112,ТП 16-127,ТП 16-140,ТП 16-146,ТП 16-163,ТП 16-181 | M14: КНС-6; Кот.-2; Дет. сад-1; | N14: Кот.-2; Школа-2; | O14: 257 | P14: 0 | Q14: 7 | R14: 250 | S14: 0 | T14: 0 | U14: 5 | V14: 252 | W14: 0 | X14: 0 | Z14: Акт №1/21 2021.02.01 | AA14: 3.4.8.4 | AB14: 4.17 | AC14: 0
B15: X | C15: 6 | D15: АО ЮРЭСК Белоярский филиал | E15: ВЛ | F15: ВЛ-110 Белоярская-Полноват-1 | G15: 110 | H15: 14,05 2021.02.04 | I15: 14,05 2021.02.04 | J15: А | K15: 0 | L15: ТП | N15: 0 | O15: 0 | P15: 0 | Q15: 0 | R15: 0 | S15: 0 | T15: 0 | U15: 0 | V15: 0 | W15: 0 | X15: 0 | AA15: 3.4.14 | AB15: 4.21 | AC15: 0
B16: X | C16: 7 | D16: АО ЮРЭСК Советский филиал | E16: ВЛ | F16: ПС 110/10 кВ "Советская" ВЛ-10 кВ ф."МК-156" | G16: 10 (10.5) | H16: 11,02 2021.02.06 | I16: 16,35 2021.02.06 | J16: А | K16: 5.55 | L16: ТП 16-087, ТП 16-088, ТП 16-089, ТП 16-090, ТП 16-091, ТП 16-092, ТП 16-093, ТП 16-094, ТП 16-095, ТП 16-096, ТП 16-097, ТП 16-098, ТП 16-099, ТП 16-103, ТП 16-131, ТП 16-132, ТП 16-132Н, ТП 16-142, ТП 16-159, ТП 16-173, ТП 16-174, ТП 16-185, ТП 16-184, ТП 16-190 | M16: ТП 16-087, ТП 16-088, ТП 16-089, ТП 16-090, ТП 16-091, ТП 16-092, ТП 16-093, ТП 16-094, ТП 16-095, ТП 16-096, ТП 16-097, ТП 16-098, ТП 16-099, ТП 16-103, ТП 16-131, ТП 16-132, ТП 16-132Н, ТП 16-142, ТП 16-159, ТП 16-173, ТП 16-174, ТП 16-185, ТП 16-184, ТП 16-190. | N16: 0 | O16: 17 | P16: 1 | Q16: 1 | R16: 15 | S16: 0 | T16: 0 | U16: 0 | V16: 17 | W16: 0 | X16: 0 | Z16: Акт №2/21 2021.02.06 | AA16: 3.4.8 | AB16: 4.17 | AC16: 0
B17: X | C17: 8 | D17: АО ЮРЭСК Советский филиал | E17: ВЛ | F17: ПС 110/10 кВ "Соболиная" ВЛ-10 кВ ф."Западный" | G17: 10 (10.5) | H17: 10,25 2021.02.07 | I17: 12,00 2021.02.07 | J17: А | K17: 1.583 | L17: ТП 16-108; ТП 16-123,ТП 16-161.ТП 16-079; ТП 16-122;ТП 16-148; ТП 16-152; ТП 16-153; ТП 16-154;ТП 16-155;ТП 16-156,ТП 16-053; ТП 16-083;ТП 16-106 | M17: 0 | N17: 0 | O17: 431 | P17: 0 | Q17: 0 | R17: 431 | S17: 0 | T17: 0 | U17: 3 | V17: 428 | W17: 0 | X17: 0 | Z17: Акт №3/21 2021.02.07 | AA17: 3.4.14 | AB17: 4.12 | AC17: 0
B18: X | C18: 9 | D18: АО "ЮРЭСК" Березовский филиал | E18: ВЛ | F18: ПС 110/10 кВ "Игрим", ВЛ-110 Игрим-Березово-2 | G18: 110 | H18: 13,14 2021.02.23 | I18: 13,14 2021.02.23 | J18: А | K18: 0 | L18: ПС | M18: 0 | N18: 0 | O18: 0 | P18: 0 | Q18: 0 | R18: 0 | S18: 0 | T18: 0 | U18: 0 | V18: 0 | W18: 0 | X18: 0 | Z18: 23.02.2021 | AA18: 3.4.14 | AB18: 4.21 | AC18: 0
B19: X | C19: 10 | D19: АО "ЮРЭСК" Няганьский филиал | E19: ВЛ | F19: ВЛ-10 МК-156 | G19: 10 (10.5) | H19: 15,20 2021.02.25 | I19: 18,42 2021.02.25 | J19: А | K19: 3.3667 | L19: ТП5-2023, 5-2033 | M19: 0 | N19: 0 | O19: 12 | P19: 0 | Q19: 0 | R19: 12 | S19: 0 | T19: 0 | U19: 12 | V19: 0 | W19: 0 | X19: 1500 | AA19: 3.4.14 | AB19: 4.21 | AC19: 0
B20: X | C20: 11 | D20: АО "ЮРЭСК" Няганский филиал | E20: ВЛ | F20: РП-10 кВ "5-6", КЛ-10 КОС-4 | G20: 10 (10.5) | H20: 13,01 2021.03.03 | I20: 13,19 2021.03.03 | J20: А | K20: 0.3 | L20: ТП 5-1433, ТП 5-1437, ТП 5-1440, ТП 5-1441, ТП 5-1457, ТП 5-1461, ТП 5-1415 Т-1 | M20: 0 | N20: 0 | O20: 9 | P20: 0 | Q20: 1 | R20: 7 | S20: 0 | T20: 0 | U20: 8 | V20: 0 | W20: 1 | X20: 95.214 | Y20: ОАО ЮТЭК-РС | Z20: оперативный журнал стр. 184,185,186 | AA20: 3.4.10 | AB20: 4.17 | AC20: 0
B21: X | C21: 12 | D21: АО "ЮРЭСК" Кондинский филиал | E21: КВЛ | F21: КВЛ-10 Луговой | G21: 10 (10.5) | H21: 02,47 2021.03.04 | I21: 05,46 2021.03.04 | J21: А | K21: 2.98 | L21: ТП № 12-42, ТП № 12-34, ТП № 12-73, ТП № 12-74, ТП № 12-45, ТП № 12-5, ТП № 12-16, ТП № 12-23, ТП Вторметресурс -1, ТП Стройинвест | M21: 0 | N21: 0 | O21: 10 | P21: 0 | Q21: 0 | R21: 10 | S21: 0 | T21: 0 | U21: 0 | V21: 10 | W21: 0 | X21: 0 | Z21: 04.03.2021 02-47 | AA21: 3.4.14 | AB21: 4.10, 4.12 | AC21: 0
B22: X | C22: 13 | D22: АО "ЮРЭСК" Няганский филиал | E22: ВЛ | F22: РП-15, ВЛ-10 УДС | G22: 10 (10.5) | H22: 22,33 2021.03.04 | I22: 22,55 2021.03.04 | J22: А | K22: 0.366 | L22: ТП СТК, ТП 5-2106, ТП 5-2107, ТП 5-2108, ТП 5-2109, ТП ТНК обр.центр, ТП СВЕ, ТП 5-2022, ТП Соврем.технологии, ТП Крокус, ТП Трайкан-Вел-Сервис, ТП Айдаков, ТП ЮТАС, ТП АБЗ, ТП 5-2037 | M22: 0 | N22: 0 | O22: 15 | P22: 0 | Q22: 0 | R22: 15 | S22: 0 | T22: 0 | U22: 15 | V22: 0 | W22: 0 | X22: 129.067 | Z22: оперативный журнал стр. 197,198,199 | AA22: 3.4.14 | AB22: 4.12 | AC22: 0
B23: X | C23: 14 | D23: АО "ЮРЭСК" Няганский филиал | E23: ВЛ | F23: РП 5-20, ВЛ-10 Промбаза | G23: 10 (10.5) | H23: 21,32 2021.03.07 | I23: 23,51 2021.03.07 | J23: А | K23: 2.317 | L23: ТП АЗС ЭЛЛИА, ТП АЗС ННП, ТП Тупик, ТП 5-2121 Т2, ТП 5-2120, ТП 5-2112, ТП 5-2113, ТП ГСК Заречный, ТП 5-2103 Т2, ТП 5-2101, ТП УТТ, ТП РТЦ, ТП ТНК | M23: 1 | N23: 0 | O23: 14 | P23: 1 | Q23: 0 | R23: 12 | S23: 0 | T23: 0 | U23: 13 | V23: 0 | W23: 1 | X23: 326.155 | Y23: ОАО ЮТЭК-РС | Z23: оперативный журнал стр. 212,213,214,215 | AA23: 3.4.14 | AB23: 4.14 | AC23: 0
B24: X | C24: 15 | D24: АО "ЮРЭСК" Няганский филиал | E24: ВЛ | F24: РП-1: В-10 "ввод-1", КВЛ-10 кВ "1-10" | G24: 10 (10.5) | H24: 21,32 2021.03.07 | I24: 22,34 2021.03.07 | J24: А | K24: 1.034 | L24: ТП 5-110, ТП-5111 Т-2 | M24: 1 | N24: 0 | O24: 2 | P24: 0 | Q24: 1 | R24: 1 | S24: 0 | T24: 0 | U24: 2 | V24: 0 | W24: 0 | X24: 212.412 | Z24: оперативный журнал стр. 212,213,214 | AA24: 3.4.14 | AB24: 4.14 | AC24: 0
B25: X | C25: 16 | D25: АО "ЮРЭСК" Советский филиал | E25: КВЛ | F25: ЦРП Советский, В-10 Юбилейный | G25: 10 (10.5) | H25: 21,17 2021.03.18 | I25: 21,47 2021.03.18 | J25: А | K25: 0.5 | L25: ТП 16-023,ТП 16-048,ТП 16-107,ТП 16-136,ТП 16-143,ТП 16-160,ТП 16-177,ТП 16-048,ТП 16-143, ТП 16-160,ТП 16-177 | M25: 2 Котельные Д/С | N25: 0 | O25: 330 | P25: 3 | Q25: 0 | R25: 327 | S25: 0 | T25: 0 | U25: 0 | V25: 330 | W25: 0 | X25: 0 | Z25: Акт №8/21 2021.03.18 | AA25: 3.4.8 | AB25: 4.4 | AC25: 0
B26: X | C26: 17 | D26: АО "ЮРЭСК" Белоярский филиал | E26: КВЛ | F26: ЦРП №10-1 Город ЗРУ-2, ввод №2 на ЦРП №10-4 Строителей | G26: 10 (10.5) | H26: 22,45 2021.03.23 | I26: 23,45 2021.03.23 | J26: А | K26: 1 | L26: ЦРП№10-1 "Город" Яч.№25, 27, 29,31,33,35 | M26: 0 | N26: 0 | O26: 6 | P26: 0 | Q26: 1 | R26: 5 | S26: 0 | T26: 0 | U26: 6 | V26: 0 | W26: 0 | X26: 0 | Z26: оперативн журнал 23.03.2021 стр.84-85 | AA26: 3.4.7.3 | AB26: 4.12 | AC26: 0
B27: X | C27: 18 | D27: АО "ЮРЭСК" Советский филиал | E27: КВЛ | F27: ПС Хвойная ВЛ-10 КОС-1 | G27: 10 (10.5) | H27: 10,22 2021.03.26 | I27: 11,42 2021.03.26 | J27: А | K27: 1.333 | L27: ТП 9-2-3,ТП 9-5-2,ТП 9-5-3, ТП 9-5-5,ТП 9-5-6,ТП 9-18-1,ТП 9-18-2,ТП 9-18-3,ТП 9-18-4,ТП 9-18-5 | M27: КОС-3; КНС-1; Котельная-1; Дет. сад-1; | N27: 0 | O27: 234 | P27: 0 | Q27: 2 | R27: 232 | S27: 0 | T27: 0 | U27: 0 | V27: 234 | W27: 0 | X27: 0 | Z27: Акт №9/21 2021.03.26 | AA27: 3.4.13 | AB27: 4.12 | AC27: 0
B28: X | C28: 19 | D28: АО "ЮРЭСК" ЮТЭК-Когалым | E28: РП | F28: ЦРП №2-6 РУ-6кВ яч.8 | G28: 6 (6.3) | H28: 10,38 2021.03.31 | I28: 11,04 2021.03.31 | J28: А | K28: 0,43 | L28: ТП№2-159 Т-2, ТП№2-124 Т-2, ТП№2-156 Т-2, ТП№2-155 Т-2, ТП№2-154 Т-2, ТП№2-157 Т-2, ТП№2-158 Т-2, ТП№2-151 Т-2, ТП№2-152 Т-2, ТП№2-104 Т-2, ТП№2-131, ТП№2-101, ТП№2-120 | M28: 0 | N28: 0 | O28: 60 | P28: 0 | Q28: 21 | R28: 39 | S28: 0 | T28: 0 | U28: 23 | V28: 37 | W28: 0 | X28: 0 | Z28: 31.03.2021 | AA28: 3.4.8.1 | AB28: 4.4 | AC28: 0
B29: X | C29: 20 | D29: АО "ЮРЭСК" Кондинский филиал | E29: ВЛ | F29: ПС 110 кВ Леуши ВЛ-10 Дальний | G29: 10 (10.5) | H29: 21,08 2021.04.01 | I29: 22,45 2021.04.01 | J29: В | K29: 1,617 | L29: ТП №12-215, ТП №12-216, ТП №12-217, ТП №12-226, ТП №12-219, ТП №12-220, ТП №12-221, ТП №12-222, ТП №12-223, ТП №12-225, ТП №12-227 | M29: ТП №12-225 | N29: 0 | O29: 11 | P29: 0 | Q29: 1 | R29: 10 | S29: 0 | T29: 0 | U29: 0 | V29: 11 | W29: 0 | X29: 0 | Z29: 21-08 2021.04.01 | AA29: 3.4.14 | AB29: 4.21 | AC29: 1
B30: X | C30: 21 | D30: АО "ЮРЭСК" Советский филиал | E30: ВЛ | F30: ВЛ-10 УРБ | G30: 10 (10.5) | H30: 14,10 2021.04.05 | I30: 17,07 2021.04.05 | J30: В | K30: 2.95 | L30: ТП 16-071,ТП 16-078,ТП 16-079,ТП 16-118,ТП 16-121,ТП 16-124,ТП 16-128,ТП 16-129,ТП 16-133,ТП 16-134,ТП 16-151,ТП 16-154,ТП 16-155,ТП 16-178. ТП 16-160,ТП 16-177 | M30: 0 | N30: 0 | O30: 330 | P30: 0 | Q30: 0 | R30: 330 | S30: 0 | T30: 0 | U30: 0 | V30: 330 | W30: 0 | X30: 0 | Z30: Акт №12/21 2021.04.05 | AA30: 3.4.14 | AB30: 4.14 | AC30: 1
B31: X | C31: 22 | D31: АО "ЮРЭСК" Няганский филиал | E31: ВЛ | F31: РП-5-20, ВЛ-10 Поселок | G31: 10 (10.5) | H31: 11,35 2021.04.07 | I31: 12,40 2021.04.07 | J31: В | K31: 1.083 | L31: ТП 5-1713 Т-1, ТП ГОВД Т-1, ТП Перевалов | O31: 11 | P31: 0 | Q31: 2 | R31: 9 | S31: 0 | T31: 0 | U31: 11 | V31: 0 | W31: 0 | X31: 279 | Z31: оперативный журнал стр. 185,186,187 | AA31: 3.4.14 | AB31: 4.14 | AC31: 1
B32: X | C32: 23 | D32: АО "ЮРЭСК" Няганский филиал | E32: КВЛ | F32: РП-1, В-10 ф. 1-10 | G32: 10 (10.5) | H32: 07,27 2021.04.11 | I32: 13,06 2021.04.11 | J32: В | K32: 5.651 | L32: ТП 5-110, ТП-5111 Т-2 | O32: 2 | P32: 0 | Q32: 2 | R32: 0 | S32: 0 | T32: 0 | U32: 2 | V32: 0 | W32: 0 | X32: 580.158 | Z32: оперативный журнал стр. 224,225,226,227,228,229 | AA32: 3.4.14 | AB32: 4.14 | AC32: 1
B33: X | C33: 24 | D33: АО "ЮРЭСК" Советский филиал | E33: ВЛ | F33: ПС 110 кВ Геологическая, ВЛ-10 Нижний склад | G33: 10 (10.5) | H33: 13,45 2021.04.12 | I33: 16,35 2021.04.12 | J33: В | K33: 2.8333 | L33: ТП 9-8-1;ТП 9-14-4;ТП 9-14-5;ТП 9-14-13;ТП 9-16-6,ТП 9-14-7;ТП 9-14-13;ТП 9-16-1;ТП 9-16-2;ТП 9-16-3;ТП 8-2;ТП 8-13;ТП 8-14;ТП 14-1;ТП 14-2,ТП 14-6, 14-18, 16-4, 16-5,ТП 16-4,ТП 16-5. ТП 16-7,ТП 16-8,ТП 16-9,ТП 16-10,ТП 16-11,ТП 16-12,ТП 16-13;ТП 8-15; | M33: 0 | N33: Дет. сад-1, Котельная-1, КНС-2. | O33: 210 | P33: 0 | Q33: 1 | R33: 209 | S33: 0 | T33: 0 | U33: 18 | V33: 192 | W33: 0 | X33: 0 | Z33: Акт №14/21 2021.04.12 | AA33: 3.4.12.2 | AB33: 4.21 | AC33: 0
B34: X | C34: 25 | D34: АО "ЮРЭСК" Кондинский филиал | E34: КВЛ | F34: ПС 110/35/10 кВ "Юмас" В-10 кВ "Поселковый-1" | G34: 10 (10.5) | H34: 15,20 2021.04.14 | I34: 15,28 2021.04.14 | J34: В | K34: 0,13 | L34: ТП №12-20, ТП №12-4 , ТП №12-33, ТП №12-75, ТП №12-2 1Т, ТП №12-43 1Т, ТП №12-26, ТП №12-48, ТП №12-47 1Т, ТП №12-60 1Т,ТП 12-24, ТП 12-9, ТП 12-64, ТП № 12-36 2Т, ТП № 12-50,ТП 12-17, ТП № 12-63, ТП № 12-41, ТП -УПРР, ТП №12-31, Тп № 12-39, ТП №12-46 2Т,ТП 12-21, ТП № 12-37, ТП № 12-10, ТП БМТО, ТП ТВК, ТП Теплопункт, ТП Междуреченскстрой, РП №12-1 РУ-0,4 | M34: ТП №12-47 1Т, ТП № 12-24, ТП 12-9, ТП Теплопункт, ТП № 12-46 2Т. | N34: 0 | O34: 30 | P34: 0 | Q34: 4 | R34: 26 | S34: 0 | T34: 0 | U34: 30 | V34: 0 | W34: 0 | X34: 0 | Z34: 15,20, 2021.04.14 | AA34: 3.4.14 | AB34: 4.21 | AC34: 1
B35: X | C35: 26 | D35: АО "ЮРЭСК" Кондинский филиал | E35: ПС | F35: ПС 35 кВ Кама, 2Т | G35: 35 | H35: 09,32 2021.04.15 | I35: 10,05 2021.04.15 | J35: В | K35: 0.55 | L35: ТП № 12-721, ТП 12-722, ТП № 12-723, ТП 12-724, ТП № 12-725, ТП 12-726 | M35: 0 | N35: 0 | O35: 6 | P35: 0 | Q35: 0 | R35: 6 | S35: 0 | T35: 0 | U35: 0 | V35: 6 | W35: 0 | X35: 0 | Z35: 09,32, 2021.04.15 | AA35: 3.4.14 | AB35: 4.21 | AC35: 1
B36: X | C36: 27 | D36: АО "ЮРЭСК" Кондинский филиал | E36: ПС | F36: ПС 35 кВ Кама, 1Т | G36: 35 | H36: 09,32 2021.04.15 | I36: 09,57 2021.04.15 | J36: В | K36: 0.4167 | L36: ТП № 12-718, ТП 12-719, ТП № 12-720 | M36: 0 | N36: 0 | O36: 3 | P36: 0 | Q36: 0 | R36: 3 | S36: 0 | T36: 0 | U36: 0 | V36: 3 | W36: 0 | X36: 0 | Z36: 09,32, 2021.04.15 | AA36: 3.4.14 | AB36: 4.21 | AC36: 1
B37: X | C37: 28 | D37: АО "ЮРЭСК" Кондинский филиал | E37: ВЛ | F37: ПС 110 кВ Леуши, ВЛ-10 Ягодный | G37: 35 | H37: 23,42 2021.04.15 | I37: 02,55 2021.04.16 | J37: В | K37: 3.2167 | L37: ТП №12-215, ТП №12-216, ТП №12-217, ТП №12-226, ТП №12-219, ТП №12-220, ТП №12-221, ТП №12-222, ТП №12-223, ТП №12-225, ТП №12-227 | M37: ТП №12-225 | N37: 0 | O37: 7 | P37: 0 | Q37: 1 | R37: 6 | S37: 0 | T37: 0 | U37: 0 | V37: 7 | W37: 0 | X37: 0 | Z37: 02-47 2021.04.18 | AA37: 3.4.14 | AB37: 4.21 | AC37: 1
B38: X | C38: 29 | D38: АО "ЮРЭСК" Советский филиал | E38: ВЛ | F38: ПС 220 кВ Картопья, ВЛ-10 ЛПК-2. | G38: 10 (10.5) | H38: 05,44 2021.04.16 | I38: 06,50 2021.04.16 | J38: В | K38: 1.1 | L38: ТП 16-007,ТП 16-012,ТП 16-031,ТП 16-035,ТП 16-036,ТП 16-037,ТП 16-038,ТП 16-063,ТП 16-066,ТП 16-074,ТП 16-076,ТП 16-111,ТП 16-112,ТП 16-127,ТП 16-140,ТП 16-146,ТП 16-163,ТП 16-181 | M38: КНС-6; Кот.-2; Дет. сад-1; | N38: Кот.-2; Школа-2; | O38: 257 | P38: 0 | Q38: 7 | R38: 250 | S38: 0 | T38: 0 | U38: 5 | V38: 252 | W38: 0 | X38: 0 | Z38: Акт №16/21 2021.04.16 | AA38: 3.4.14 | AB38: 4.12 | AC38: 1
B39: X | C39: 30 | D39: АО "ЮРЭСК" Советский филиал | E39: КВЛ | F39: ПС Геологическая КВЛ-10 Строитель | G39: 10 (10.5) | H39: 14,50 2021.04.17 | I39: 17,21 2021.04.17 | J39: В | K39: 2.517 | L39: ТП 9-12-6;ТП 9-12-7;ТП 9-13-2;ТП 9-13-3;ТП 9-13-10;ТП 13-14;ТП 9-12-2;ТП 9-13-1;ТП 9-13-4;ТП 13-11;ТП 9-13-12;ТП 13-13 | M39: Котельная-2, КНС-4 | N39: Котельная-2, Д/С-1 | O39: 119 | P39: 4 | Q39: 5 | R39: 110 | S39: 0 | T39: 0 | U39: 3 | V39: 116 | W39: 0 | X39: 0 | Z39: Акт №17/21 2021.04.17 | AA39: 3.4.12.2 | AB39: 4.3 | AC39: 0
B40: X | C40: 31 | D40: АО "ЮРЭСК" Кондинский филиал | E40: ВЛ | F40: ПС 35 кВ Кама, ВЛ 10 кВ Алтай | G40: 10 (10.5) | H40: 02,15 2021.04.18 | I40: 06,33 2021.04.18 | J40: В | K40: 4,3 | L40: ТП № 12-721, ТП № 12-722, ТП № 12-723, ТП № 12-724, ТП № 12-725, ТП № 12-726 | M40: 0 | N40: 0 | O40: 6 | P40: 0 | Q40: 0 | R40: 6 | S40: 0 | T40: 0 | U40: 0 | V40: 6 | W40: 0 | X40: 0 | Z40: 02-15 2021.04.18 | AA40: 3.4.14 | AB40: 4.21 | AC40: 1
B41: X | C41: 32 | D41: АО "ЮРЭСК" Кондинский филиал | E41: ВЛ | F41: ПС 110 кВ Леуши, ВЛ-10 Ягодный | G41: 10 (10.5) | H41: 02,47 2021.04.18 | I41: 14,12 2021.04.18 | J41: В | K41: 11.4167 | L41: ТП №12-215, ТП №12-216, ТП №12-217, ТП №12-226, ТП №12-219, ТП №12-220, ТП №12-221, ТП №12-222, ТП №12-223, ТП №12-225, ТП №12-227 | M41: ТП №12-225 | N41: 0 | O41: 7 | P41: 0 | Q41: 1 | R41: 6 | S41: 0 | T41: 0 | U41: 0 | V41: 7 | W41: 0 | X41: 0 | Z41: 02-47 2021.04.18 | AA41: 3.4.14 | AB41: 4.21 | AC41: 1
B42: X | C42: 33 | D42: АО "ЮРЭСК" Советский филиал | E42: ВЛ | F42: ПС 110 кВ Самза, В-10 Поселок | G42: 10 (10.5) | H42: 16,39 2021.04.21 | I42: 19,53 2021.04.21 | J42: В | K42: 3.233 | L42: ТП 16-805(н);ТП 16-806;ТП 16-806н;ТП 16-808;ТП 16-809;ТП 16-809н;ТП 16-810;ТП 16-810н;ТП 16-812н;ТП 16-813;ТП 16-813н;ТП 16-814;ТП 16-815;ТП 16-817н;ТП 16-818н | M42: Амбулатория-1, Котельная-2, Школа-1, Дет. сад-1. | N42: 0 | O42: 457 | P42: 0 | Q42: 5 | R42: 452 | S42: 0 | T42: 0 | U42: 1 | V42: 456 | W42: 0 | X42: 0 | Z42: Акт №23/21 2021.04.21 | AA42: 3.4.13 | AB42: 4.12 | AC42: 1
B43: X | C43: 34 | D43: АО "ЮРЭСК" Советский филиал | E43: ВЛ | F43: ПС Советская, В-10 МК-156 | G43: 10 (10.5) | H43: 16,51 2021.04.21 | I43: 18,22 2021.04.21 | J43: В | K43: 1.517 | L43: ТП 16-087, ТП 16-088, ТП 16-089, ТП 16-090, ТП 16-091, ТП 16-092, ТП 16-093, ТП 16-094, ТП 16-095, ТП 16-096, ТП 16-097, ТП 16-098, ТП 16-099, ТП 16-103, ТП 16-131, ТП 16-132, ТП 16-132Н, ТП 16-142, ТП 16-159, ТП 16-173, ТП 16-174, ТП 16-185, ТП 16-184, ТП 16-190 | M43: 0 | N43: 0 | O43: 24 | P43: 0 | Q43: 0 | R43: 24 | S43: 0 | T43: 0 | U43: 22 | V43: 2 | W43: 0 | X43: 0 | Z43: Акт №24/21 2021.04.21 | AA43: 3.4.9.3 | AB43: 4.21 | AC43: 0
B44: X | C44: 35 | D44: АО "ЮРЭСК" Няганьский филиал | E44: ВЛ | F44: ПС 110/10 Сергино, ВЛ-10 Поселок-3 | G44: 10 (10.5) | H44: 13,20 2021.04.23 | I44: 13,20 2021.04.23 | J44: В | K44: 0 | L44: ТП | O44: 1 | P44: 0 | Q44: 0 | R44: 0 | S44: 0 | T44: 0 | U44: 0 | V44: 0 | W44: 1 | X44: 0 | Y44: АО "ЮТЭК-РС" | Z44: О/Ж от 23.04.2021 | AA44: 3.4.9.3 | AB44: 4.3 | AC44: 0
B45: X | C45: 36 | D45: АО "ЮРЭСК" г. Ханты-Мансийск | E45: ВЛ | F45: ПС 110/10 Авангард КВЛ-10 ТП-2048-2 | G45: 10 (10.5) | H45: 17,50 2021.04.23 | I45: 19,36 2021.04.23 | J45: В | K45: 1.7667 | L45: ТП | O45: 1 | P45: 0 | Q45: 0 | R45: 0 | S45: 0 | T45: 0 | U45: 0 | V45: 0 | W45: 1 | X45: 0 | Y45: ООО "Ханты-Мансийские городские электрические сети" | Z45: О/Ж от 24.04.2021 | AA45: 3.4.9.3 | AB45: 4.3 | AC45: 0
B46: X | C46: 37 | D46: АО "ЮРЭСК" Няганский филиал | E46: ВЛ | F46: РП 5-17, ВЛ-10 ГУС | G46: 10 (10.5) | H46: 16,29 2021.04.24 | I46: 18,09 2021.04.24 | J46: В | K46: 1.667 | L46: ТП 5-1426 Т-1, ТП 5-1419, ТП 5-1406 Т-2, ТП 5-1439, ТП ГСК-Трубник, ТП 5-1436, ТП ГСК-Мотор, ТТП ГСК-Геофизик, ТП ПК-Строитель, ТП 5-1460, ТП 5-1462 | M46: 0 | N46: 0 | O46: 14 | P46: 0 | Q46: 0 | R46: 14 | S46: 0 | T46: 0 | U46: 14 | V46: 0 | W46: 0 | X46: 621.4 | Z46: оперативный журнал стр.38-41 | AA46: 3.4.14 | AB46: 4.12 | AC46: 1
B47: X | C47: 38 | D47: АО "ЮРЭСК" Кондинский филиал | E47: ВЛ | F47: РП-12-1, ВЛ-10 Центральный | G47: 10 (10.5) | H47: 21,10 2021.04.30 | I47: 21,18 2021.04.30 | J47: В | K47: 0,13 | L47: ТП №12-20, ТП №12-4 1Т, ТП №12-2 1Т, ТП №12-43, ТП №12-26, ТП №12-48, ТП №12-60 2Т, ТП №12-47 2Т, ТП №12-33, ТП №12-75 2Т | M47: 0 | N47: КП №12-47 2Т, ТП №12-75 2Т. | O47: 10 | P47: 0 | Q47: 2 | R47: 8 | S47: 0 | T47: 0 | U47: 0 | V47: 10 | W47: 0 | X47: 0 | Z47: 21-10 2021.04.30 | AA47: 3.4.10 | AB47: 4.4 | AC47: 0
B48: X | C48: 39 | D48: АО "ЮРЭСК" Няганьский филиал | E48: ВЛ | F48: РП 5-13, ВЛ-10 МК-156 | G48: 10 (10.5) | H48: 18,16 2021.05.01 | I48: 18,59 2021.05.01 | J48: В | K48: 0.72 | L48: ТП Древблоксервис, НПСК, Ника плюс, НСМ-1, НСМ, Эпсилон, КНПЗ, 5-2023, ТНК-BP, трубная база, 5-2033, ФСК ЕЭС, Технокерамика, СУОР, УТТ, Талспецстрой,Сибур-Транс Т1 | M48: 0 | N48: 0 | O48: 17 | P48: 0 | Q48: 0 | R48: 17 | S48: 0 | T48: 0 | U48: 17 | V48: 0 | W48: 0 | X48: 0 | Z48: оперативный журнал стр. 111, 112 | AA48: 3.4.12.2 | AB48: 4.12 | AC48: 1
B49: X | C49: 40 | D49: АО "ЮРЭСК" Кондинский филиал | E49: ВЛ | F49: ПС 110/35/10 кВ "Юмас" В-10 кВ "Промплощадка" | G49: 10 (10.5) | H49: 10,57 2021.05.05 | I49: 14,25 2021.05.05 | J49: В | K49: 3.47 | L49: КТП № 12-68; КТП № 12-69; КТП № 12-70; КТП № 12-71; КТП №12-32, КТП №12-84 | M49: 0 | N49: 0 | O49: 6 | P49: 0 | Q49: 0 | R49: 6 | S49: 0 | T49: 0 | U49: 0 | V49: 6 | W49: 0 | X49: 0 | Z49: Акт № 9 05.05.21 | AA49: 3.4.7.4 | AB49: 4.14 | AC49: 1
B50: X | C50: 41 | D50: АО "ЮРЭСК" Кондинский филиал | E50: ВЛ | F50: ПС 110/35/10 кВ "Юмас" В-10 кВ "Нефтяник-2" | G50: 10 (10.5) | H50: 11,18 2021.05.05 | I50: 11,57 2021.05.05 | J50: В | K50: 0.65 | L50: КТП № 12-65; КТП №12-15 2Т, КТП № 12-61; КТП №12-59; КТП № 12-30; КТП № 12-22; КТП №12-44, КТП №12-80: КТП №12-56, КТП №12-57 2Т; КТП №12-58 2Т, КТП №12-13 1Т; КТП №12 1Т | M50: 0 | N50: КТП №12-57 2Т; КТП №12-58 2Т; КТП №12-15 2Т | O50: 13 | P50: 0 | Q50: 3 | R50: 10 | S50: 0 | T50: 0 | U50: 0 | V50: 13 | W50: 0 | X50: 0 | Z50: Акт № 10 05.05.21 | AA50: 3.4.7.4 | AB50: 4.14 | AC50: 1
B51: X | C51: 42 | D51: АО "ЮРЭСК" Кондинский филиал | E51: ВЛ | F51: ПС 110 кВ Леуши ВЛ-10 Дальний | G51: 10 (10.5) | H51: 16,50 2021.05.05 | I51: 20,57 2021.05.05 | J51: В | K51: 4.12 | L51: КТП №12-215, КТП №12-216, КТП №12-217, КТП №12-226 | M51: 0 | N51: 0 | O51: 4 | P51: 0 | Q51: 0 | R51: 4 | S51: 0 | T51: 0 | U51: 0 | V51: 4 | W51: 0 | X51: 0 | Z51: Акт № 11 05.05.21 | AA51: 3.4.7.4 | AB51: 4.14 | AC51: 1
B52: X | C52: 43 | D52: АО "ЮРЭСК" Ханты-Мансийск | E52: ВЛ | F52: ПС 110/35/10 кВ ГИБДД, ВЛ-35 кВ ГИБДД-Ярки-1 | G52: 35 | H52: 12,07 2021.05.06 | I52: 12,07 2021.05.06 | J52: В | K52: 0 | L52: ВЛ | O52: 1 | P52: 0 | Q52: 0 | R52: 0 | S52: 0 | T52: 0 | U52: 0 | V52: 0 | W52: 1 | X52: 0 | Y52: АО "ЮТЭК-РС" | Z52: Акт №51 06.05.2021 | AA52: 3.4.13.3 | AB52: 4.12 | AC52: 0
B53: X | C53: 44 | D53: АО "ЮРЭСК" Березовский филиал | E53: ВЛ | F53: КПП 6/20 Игрим №11-2114, ВЛЗ-20 Ванзетур | G53: 20 (21) | H53: 13,51 2021.05.06 | I53: 19,30 2021.05.06 | J53: В | K53: 5.65 | L53: ТП | O53: 181 | P53: 0 | Q53: 0 | R53: 181 | S53: 0 | T53: 0 | U53: 0 | V53: 181 | W53: 0 | X53: 0 | Z53: оперативный журнал стр. 74,75,76 | AA53: 3.4.8 | AB53: 4.8 | AC53: 0
B54: X | C54: 45 | D54: АО "ЮРЭСК" Кондинский филиал | E54: ВЛ | F54: РП-12-2, ВЛ-10 Энергетик | G54: 10 (10.5) | H54: 15,25 2021.05.08 | I54: 17,15 2021.05.08 | J54: В | K54: 1.83 | L54: КТП № 12-65; КТП №12-15 2Т, КТП № 12-61; КТП №12-59; КТП № 12-30; КТП № 12-22; КТП №12-44, КТП №12-80: КТП №12-56, КТП №12-57 2Т; КТП №12-58 2Т, КТП №12-13 1Т; КТП №12 1Т | N54: КТП №12-57 2Т; КТП №12-58 2Т; КТП №12-15 2Т | O54: 13 | P54: 0 | Q54: 3 | R54: 10 | S54: 0 | T54: 0 | U54: 0 | V54: 13 | W54: 0 | X54: 0 | Z54: опер. жур ст. № 157 | AA54: 3.4.13 | AB54: 4.14 | AC54: 1
B55: X | C55: 46 | D55: АО "ЮРЭСК" ЮТЭК-ХМР | E55: ВЛ | F55: ПС Цингалы, ВЛ-10 Цингалы-2 | G55: 10 (10.5) | H55: 08,16 2021.05.11 | I55: 08,42 2021.05.11 | J55: В | K55: 0.43 | L55: ВЛ | O55: 89 | P55: 0 | Q55: 1 | R55: 88 | S55: 0 | T55: 0 | U55: 89 | V55: 0 | W55: 0 | X55: 0 | Z55: оперативный журнал стр. № 89 | AA55: 3.4.8 | AB55: 4.8 | AC55: 0
B56: X | C56: 47 | D56: АО "ЮРЭСК" Кондинский филиал | E56: КЛ | F56: ПС МДФ КЛ-10 Завод-1 | G56: 10 (10.5) | H56: 11,47 2021.05.11 | I56: 11,49 2021.05.11 | J56: В | K56: 0.03 | L56: КЛ | O56: 1 | P56: 0 | Q56: 1 | R56: 0 | S56: 1 | T56: 0 | U56: 0 | V56: 0 | W56: 0 | X56: 0 | Z56: опер. жур ст. № 157 | AA56: 3.4.1 | AB56: 4.21 | AC56: 1
B57: X | C57: 48 | D57: АО "ЮРЭСК" Кондинский филиал | E57: КВЛ | F57: ПС Евра КВЛ-6 КОС-2 | G57: 6 (6.3) | H57: 13,16 2021.05.11 | I57: 13,30 2021.05.11 | J57: В | K57: 0.23 | L57: КВЛ | O57: 1 | P57: 0 | Q57: 0 | R57: 0 | S57: 0 | T57: 0 | U57: 0 | V57: 0 | W57: 1 | X57: 0 | Y57: АО "ЮТЭК-РС" | Z57: опер. жур ст. № 157 | AA57: 3.4.1 | AB57: 4.21 | AC57: 1
B58: X | C58: 49 | D58: АО "ЮРЭСК" Няганьский филиал | E58: ВЛ | F58: ПС Чара, ВЛ-10 Финский комплекс | G58: 10 (10.5) | H58: 10,56 2021.05.12 | I58: 15,21 2021.05.12 | J58: В | K58: 4.42 | L58: ТП | O58: 0 | P58: 0 | Q58: 0 | R58: 0 | S58: 0 | T58: 0 | U58: 0 | V58: 0 | W58: 0 | X58: 0 | Z58: оперативный журнал стр. 164,165,166,167,168 | AA58: 3.4.9 | AB58: 4.21 | AC58: 1
B59: X | C59: 50 | D59: АО "ЮРЭСК" Советский филиал | E59: ВЛ | F59: ПС 110/10 кВ "Алябьево" ВЛ-10 кВ ф."Малиновский" | G59: 10 (10.5) | H59: 19,52 2021.05.16 | I59: 06,18 2021.05.17 | J59: В | K59: 10.43 | L59: ТП 16-401;ТП 16-402;ТП16-403;ТП 16-411;ТП1 6-413,ТП 16-414;ТП 16-418;ТП 16-404;ТП 16-405;ТП 16-408;ТП 16-409;ТП 16-410;ТП 16-416;ТП 16-417;ТП 16-419 | M59: Котельная-1; Школа-1; Дет.сад -1; Скважины-1; ВОС-1; КОС-1; КНС-2; Амбулатория-2 | N59: 0 | O59: 23 | P59: 4 | Q59: 9 | R59: 10 | S59: 0 | T59: 0 | U59: 0 | V59: 23 | W59: 0 | X59: 0 | Z59: Акт №30/21 2021.05.16 | AA59: 3.4.12.2, 3.4.12.3 | AB59: 4.14, 4.16 | AC59: 1
B60: X | C60: 51 | D60: АО "ЮРЭСК" Советский филиал | E60: ВЛ | F60: ПС 110/10 кВ "Хвойная" ВЛ-10 кВ ф."Зеленая зона" | G60: 10 (10.5) | H60: 21,06 2021.05.16 | I60: 06,46 2021.05.17 | J60: В | K60: 9.67 | L60: ТП 9-17-43, 9-2-10, 9-17-41, 9-17-36, 9-17-19, 9-17-20, 9-17-39, 9-17-21, 9-17-22, 9-17-23,9-17-24, 9-17-25, 9-17-34, 9-17-38, 9-17-33, 9-17-26, 17-46 9-17-37, 9-17-45, 9-17-27, 9-17-35 | M60: 0 | N60: 0 | O60: 150 | P60: 0 | Q60: 0 | R60: 150 | S60: 0 | T60: 0 | U60: 18 | V60: 132 | W60: 0 | X60: 0 | Z60: Акт №35/21 2021.05.16 | AA60: 3.4.12.3 | AB60: 4.11 | AC60: 1
B61: X | C61: 52 | D61: АО "ЮРЭСК" Советский филиал | E61: ВЛ | F61: ПС Геологическая ВЛ-10 Нижний склад | G61: 10 (10.5) | H61: 21,06 2021.05.16 | I61: 00,20 2021.05.17 | J61: В | K61: 3.23 | L61: ТП 9-8-1;ТП 9-14-4;ТП 9-14-5;ТП 9-14-13;ТП 9-16-6,ТП 9-14-7;ТП 9-14-13;ТП 9-16-1;ТП 9-16-2;ТП 9-16-3;ТП 8-2;ТП 8-13;ТП 8-14;ТП 14-1;ТП 14-2,ТП 14-6, 14-18, 16-4, 16-5,ТП 16-4,ТП 16-5. ТП 16-7,ТП 16-8,ТП 16-9,ТП 16-10,ТП 16-11,ТП 16-12,ТП 16-13;ТП 8-15; | M61: 0 | N61: Дет. сад-1, Котельная-1, КНС-2. | O61: 10 | P61: 0 | Q61: 1 | R61: 9 | S61: 0 | T61: 0 | U61: 2 | V61: 8 | W61: 0 | X61: 0 | Z61: Акт №32/21 2021.05.16 | AA61: 3.4.12.2, 3.4.12.3 | AB61: 4.17 | AC61: 1
B62: X | C62: 53 | D62: АО "ЮРЭСК" Советский филиал | E62: ВЛ | F62: ПС 110 кВ Алябьево, ВЛ-10 Малиновский | G62: 10 (10.5) | H62: 09,04 2021.05.17 | I62: 12,55 2021.05.17 | J62: В | K62: 3.85 | L62: ТП 16-401;ТП 16-402;ТП16-403;ТП 16-411;ТП1 6-413,ТП 16-414;ТП 16-418;ТП 16-404;ТП 16-405;ТП 16-408;ТП 16-409;ТП 16-410;ТП 16-416;ТП 16-417;ТП 16-419 | M62: Котельная-1; Школа-1; Дет.сад -1; Скважины-1; ВОС-1; КОС-1; КНС-2; Амбулатория-2 | N62: 0 | O62: 598 | P62: 4 | Q62: 9 | R62: 585 | S62: 0 | T62: 0 | U62: 0 | V62: 598 | W62: 0 | X62: 0 | Z62: Акт №36/21 2021.05.17 | AA62: 3.4.8 | AB62: 4.8 | AC62: 0
B63: X | C63: 54 | D63: АО "ЮРЭСК" Советский филиал | E63: ВЛ | F63: ПС 110 кВ Алябьево, ВЛ-10 Малиновский | G63: 10 (10.5) | H63: 16,12 2021.05.17 | I63: 17,22 2021.05.17 | J63: В | K63: 1.17 | L63: ТП 16-401;ТП 16-402;ТП16-403;ТП 16-411;ТП1 6-413,ТП 16-414;ТП 16-418;ТП 16-404;ТП 16-405;ТП 16-408;ТП 16-409;ТП 16-410;ТП 16-416;ТП 16-417;ТП 16-419 | M63: Котельная-1; Школа-1; Дет.сад -1; Скважины-1; ВОС-1; КОС-1; КНС-2; Амбулатория-2 | N63: 0 | O63: 598 | P63: 4 | Q63: 9 | R63: 585 | S63: 0 | T63: 0 | U63: 0 | V63: 598 | W63: 0 | X63: 0 | Z63: Акт №37/21 2021.05.17 | AA63: 3.4.8 | AB63: 4.8 | AC63: 0
B64: X | C64: 55 | D64: АО "ЮРЭСК" Советский филиал | E64: ВЛ | F64: ПС 110/10 Алябьево, ВЛ-10 Пионерский-2 | G64: 10 (10.5) | H64: 16,23 2021.05.17 | I64: 18,32 2021.05.17 | J64: В | K64: 2.15 | L64: ТП 16-207;ТП 16-209;ТП 16-211; ТП 16-212;ТП 16-213;ТП 16-222; ТП 16-224;ТП 16-206;ТП 16-214; ТП 16-216;ТП 16-223.ТП 16-217П;ТП 16-220П;ТП 16-228П;ТП 16-230П | M64: КНС-1; Дет Сад-1; Дет дом «Берегиня», Больница; Котельная-2шт. СППВ (очистка воды) | N64: 0 | O64: 23 | P64: 2 | Q64: 6 | R64: 15 | S64: 0 | T64: 0 | U64: 4 | V64: 19 | W64: 0 | X64: 0 | Z64: Акт №38/21 2021.05.17 | AA64: 3.4.12.2, 3.4.12.3 | AB64: 4.17 | AC64: 1
B65: X | C65: 56 | D65: АО "ЮРЭСК" Няганский ф-л | E65: КЛ | F65: ПС 110/10 кВ "Чара" ф."ЛХК-2" | G65: 10 (10.5) | H65: 08,26 2021.05.18 | I65: 09,10 2021.05.18 | J65: В | K65: 0.73 | L65: ТП | O65: 0 | P65: 0 | Q65: 0 | R65: 0 | S65: 0 | T65: 0 | U65: 0 | V65: 0 | W65: 0 | X65: 0 | Z65: оперативный журнал стр. 227,228 | AA65: 3.4.14 | AB65: 4.21 | AC65: 1
B66: X | C66: 57 | D66: АО "ЮРЭСК" Няганский филиал | E66: КЛ | F66: РП-22, ВЛ-10 ф. Восточный-1 | G66: 10 (10.5) | H66: 16,22 2021.05.18 | I66: 16,42 2021.05.18 | J66: В | K66: 0.33 | L66: ТП 5-1409 ТП 5-1407 ТП Ростелеком ТП 5-1454 ТП Нагорный ТП ГСК Сибиряк ТП 5-1408 ТП 5-1451 ТП ИП Свиридов ТП ГСК ЮГАН ТП 5-1421 ТП 5-1455 ТП 5-1429 ТП 5-1430 ТП 14-44 ТП 37-01 ТП-5-1427 | M66: 0 | N66: 0 | O66: 18 | P66: 0 | Q66: 1 | R66: 17 | S66: 0 | T66: 0 | U66: 18 | V66: 0 | W66: 0 | X66: 0 | Z66: оперативный журнал стр. 237,238 | AA66: 3.4.14 | AB66: 4.14 | AC66: 1
B67: X | C67: 58 | D67: АО "ЮРЭСК" Няганский филиал | E67: КЛ | F67: РП-22, ВЛ-10 ф. Восточный-1 | G67: 10 (10.5) | H67: 16,22 2021.05.18 | I67: 16,42 2021.05.18 | J67: В | K67: 0.33 | L67: ТП 5-1409 ТП 5-1407 ТП Ростелеком ТП 5-1454 ТП Нагорный ТП ГСК Сибиряк ТП 5-1408 ТП 5-1451 ТП ИП Свиридов ТП ГСК ЮГАН ТП 5-1421 ТП 5-1455 ТП 5-1429 ТП 5-1430 ТП 14-44 ТП 37-01 ТП-5-1427 | M67: 0 | N67: 0 | O67: 18 | P67: 0 | Q67: 1 | R67: 17 | S67: 0 | T67: 0 | U67: 18 | V67: 0 | W67: 0 | X67: 0 | Z67: оперативный журнал стр. 237,238 | AA67: 3.4.14 | AB67: 4.14 | AC67: 1
B68: X | C68: 59 | D68: АО "ЮРЭСК" Березовский филиал | E68: ВЛ | F68: ВЛ-20 кВ Игрим-Ванзетур | G68: 20 (21) | H68: 18,28 2021.05.20 | I68: 18,31 2021.05.20 | J68: В | K68: 0.05 | L68: ВЛ | O68: 18 | P68: 0 | Q68: 0 | R68: 18 | S68: 0 | T68: 0 | U68: 0 | V68: 18 | W68: 0 | X68: 0 | Z68: оперативный журнал стр. 155 | AA68: 3.4.8.5 | AB68: 4.4 | AC68: 1
B69: X | C69: 60 | D69: АО "ЮРЭСК" Белоярский филиал | E69: ВЛ | F69: ЦРП №10-1 Город, ВЛ-10 фид.№37 | G69: 10 (10.5) | H69: 17,51 2021.05.23 | I69: 18,52 2021.05.23 | J69: В | K69: 1.02 | L69: КТП №1001 ,1002,1003,1004,1005,1006,1007,1008, 10-1010, 10-1011 | O69: 10 | P69: 0 | Q69: 0 | R69: 10 | S69: 0 | T69: 0 | U69: 10 | V69: 0 | W69: 0 | X69: 0 | Z69: Оперативный журнал 23.05.2021 стр.118 | AA69: 3.4.14 | AB69: 4.21 | AC69: 1
B70: X | C70: 61 | D70: АО "ЮРЭСК" Кондинский филиал | E70: ВЛ | F70: ПС 110/10 Юмас, ВЛ-10 Станция | G70: 10 (10.5) | H70: 22,39 2021.05.24 | I70: 22,53 2021.05.24 | J70: В | K70: 0.23 | L70: ТП "ГСМ Багаев", ТП № 12-81, ТП №12-52, ТП №12-51, ТП №12-53, ТП №12-54, ТП №12-55, ТП № 12-89, ТП № 12-29, ТП "ГСМ", ТП "ДРСУ-1", ТП "ДРСУ-2 | M70: 0 | N70: 0 | O70: 12 | P70: 0 | Q70: 0 | R70: 12 | S70: 0 | T70: 0 | U70: 0 | V70: 12 | W70: 0 | X70: 0 | Z70: опер. жур ст. № 15 | AA70: 3.4.12.3 | AB70: 4.21 | AC70: 1
B71: X | C71: 62 | D71: АО "ЮРЭСК" Кондинский филиал | E71: ПС | F71: ПС Фарада, 1Т | G71: 10 (10.5) | H71: 23,27 2021.05.24 | I71: 00,18 2021.05.25 | J71: В | K71: 0.85 | L71: ТП №12-501,ТП № 12-502, ТП №12-503, ТП №12-504, ТП №12-505, ТП №12-506, ТП №12-507, ТП № 12-508, ТП № 12-509, ТП №12-510, ТП №12-511, ТП №12-512, ТП №12-513, ТП №12-514, ТП №12-515, ТП №12-513, ТП №12-514, ТП №12-515,ТП № 12-516, ТП №12-517, ТП №12-518, ТП №12-519, ТП №12-520, ТП №12-521, ТП № 12-522, ТП № 12-523, ТП №12-524, ТП №12-525, ТП №12-526, ТП №12-527, ТП №12-528, ТП №12-529, ТП №12-530, ТП №12-531, ТП №12-532 | M71: ТП №12-506, ТП №12-509, ТП №12-515, ТП №12-517, ТП №12-518, ТП №12-527 | N71: 0 | O71: 32 | P71: 0 | Q71: 6 | R71: 26 | S71: 0 | T71: 0 | U71: 0 | V71: 32 | W71: 0 | X71: 0 | Z71: Акт № 55 от 24.05.2021 | AA71: 3.4.12.3 | AB71: 4.21 | AC71: 1
B72: X | C72: 63 | D72: АО "ЮРЭСК" Няганский филиал | E72: ВЛ | F72: ПС 110 кВ Чульчам, ВЛ-10 ПНГС | G72: 10 (10.5) | H72: 16,35 2021.05.25 | I72: 16,40 2021.05.25 | J72: В | K72: 0.08 | L72: ТП ГСК "Спутник", ТП ГСК "Автомобилист", ТП Автодом, ТП МТА, ТП 5-1601,ТП 5-1602,ТП 5-1603, ТП 5-1605, ТП 5-1606, ТП СГС, ТП ГСК "Югра", ТП Тюм.гео.комп, ТП Ирком, ТП 5-2122 | M72: 0 | N72: 0 | O72: 15 | P72: 0 | Q72: 0 | R72: 15 | S72: 0 | T72: 0 | U72: 15 | V72: 0 | W72: 0 | X72: 0 | Z72: оперативный журнал стр. 11,12 | AA72: 3.4.8 | AB72: 4.8 | AC72: 0
B73: X | C73: 64 | D73: АО "ЮРЭСК" Советский филиал | E73: КВЛ | F73: ПС 220 кВ Картопья, КВЛ-10 ЛПК-2. | G73: 10 (10.5) | H73: 10,53 2021.05.26 | I73: 12,18 2021.05.26 | J73: В | K73: 1.42 | L73: ТП 16-007,ТП 16-012,ТП 16-031,ТП 16-035,ТП 16-036,ТП 16-037,ТП 16-038,ТП 16-063,ТП 16-066,ТП 16-074,ТП 16-076,ТП 16-111,ТП 16-112,ТП 16-127,ТП 16-140,ТП 16-146,ТП 16-163,ТП 16-181 | M73: КНС-6; Кот.-2; Дет. сад-2; | N73: Кот.-2; Школа-2; | O73: 32 | P73: 0 | Q73: 7 | R73: 25 | S73: 0 | T73: 0 | U73: 5 | V73: 27 | W73: 0 | X73: 0 | Z73: Акт №42/21 2021.05.26 | AA73: 3.4.12.2 | AB73: 4.17 | AC73: 1
B74: X | C74: 65 | D74: АО "ЮРЭСК" Кондинский филиал | E74: ВЛ | F74: ПС 35/6 Мулымская, ВЛ-6 Ушьинский | G74: 6 (6.3) | H74: 00,37 2021.05.27 | I74: 01,54 2021.05.27 | J74: В | K74: 1.28 | L74: ТП 12-810, ТП 12-813, ТП 12-811, ТП 12-817, ТП 12-816, ТП 12-815, ТП 12-809, ТП 12-814, ТП 12-812 | M74: 9 | N74: 0 | O74: 9 | P74: 0 | Q74: 0 | R74: 9 | S74: 0 | T74: 0 | U74: 0 | V74: 9 | W74: 0 | X74: 0 | Z74: Акт № 12 от 26.05.2021 | AA74: 3.4.12.2 | AB74: 4.15 | AC74: 1
B75: X | C75: 66 | D75: АО "ЮРЭСК" Сургутское производственное подразделение | E75: ВЛ | F75: ПС 110/10/6 Пионерная-2, ВЛ-6 ТП-Нефтяник-2 | G75: 6 (6.3) | H75: 03,00 2021.05.27 | I75: 04,48 2021.05.27 | J75: В | K75: 1.8 | L75: ТП | O75: 1 | P75: 0 | Q75: 0 | R75: 0 | S75: 0 | T75: 0 | U75: 0 | V75: 0 | W75: 1 | X75: 0 | Y75: ООО Сургутские городские электрические сети | Z75: оперативный журнал стр. № 196 | AA75: 3.4.14 | AB75: 4.21 | AC75: 1
B76: X | C76: 67 | D76: АО "ЮРЭСК" Няганский филиал | E76: ВЛ | F76: РП-15, ВЛ-10 Пионерный | G76: 10 (10.5) | H76: 07,57 2021.05.30 | I76: 09,46 2021.05.30 | J76: В | K76: 1.82 | L76: ТП бурвод, 5-2008, автотрансервис, 5-2111, 5-2115,5-2104 Т2,5-2103 Т1, 5-2102 | M76: 0 | N76: 0 | O76: 8 | P76: 0 | Q76: 2 | R76: 6 | S76: 0 | T76: 0 | U76: 8 | V76: 0 | W76: 0 | X76: 0 | Z76: оперативный журнал стр. 46,47,48 | AA76: 3.4.14 | AB76: 4.14 | AC76: 1
B77: X | C77: 68 | D77: АО "ЮРЭСК" Няганский филиал | E77: ВЛ | F77: РП-15, ВЛ-10 УДС | G77: 10 (10.5) | H77: 15,12 2021.05.30 | I77: 17,08 2021.05.30 | J77: В | K77: 1.93 | L77: ТП СТК, ТП 5-2106, ТП 5-2107, ТП 5-2108, ТП 5-2109, ТП ТНК обр.центр, ТП СВЕ, ТП 5-2022, ТП Соврем.технологии, ТП Крокус, ТП Трайкан-Вел-Сервис, ТП Айдаков, ТП ЮТАС, ТП АБЗ, ТП 5-2037 | M77: 0 | N77: 0 | O77: 15 | P77: 0 | Q77: 2 | R77: 13 | S77: 0 | T77: 0 | U77: 15 | V77: 0 | W77: 0 | X77: 0 | Z77: оперативный журнал стр. 49,50 | AA77: 3.4.14 | AB77: 4.14 | AC77: 1
B78: X | C78: 69 | D78: АО "ЮРЭСК" Няганский филиал | E78: ВЛ | F78: РП-15, ВЛ-10 Пионерный | G78: 10 (10.5) | H78: 16,25 2021.05.30 | I78: 18,32 2021.05.30 | J78: В | K78: 2.12 | L78: ТП СТК, ТП 5-2106, ТП 5-2107, ТП 5-2108, ТП 5-2109, ТП ТНК обр.центр, ТП СВЕ, ТП 5-2022, ТП Соврем.технологии, ТП Крокус, ТП Трайкан-Вел-Сервис, ТП Айдаков, ТП ЮТАС, ТП АБЗ, ТП 5-2037 | M78: 0 | N78: 0 | O78: 15 | P78: 0 | Q78: 2 | R78: 13 | S78: 0 | T78: 0 | U78: 15 | V78: 0 | W78: 0 | X78: 0 | Z78: оперативный журнал стр. 49,50,51 | AA78: 3.4.14 | AB78: 4.14 | AC78: 1
B79: X | C79: 70 | D79: АО "ЮРЭСК" Березовский филиал | E79: ВЛ | F79: ПС 110/10 кВ "Игрим", ВЛ-110 Игрим-Березово-2 | G79: 110 | H79: 03,47 2021.06.07 | I79: 03,47 2021.06.07 | J79: В | K79: 0 | L79: ВЛ | O79: 0 | P79: 0 | Q79: 0 | R79: 0 | S79: 0 | T79: 0 | U79: 0 | V79: 0 | W79: 0 | X79: 0 | Z79: Скан оперативного журнала ст. 257 | AA79: 3.4.14 | AB79: 4.21 | AC79: 0
B80: X | C80: 71 | D80: АО "ЮРЭСК" СПП | E80: КЛ | F80: РП 10 кВ "Восход", КЛ-10 РП-107-1 | G80: 10 (10.5) | H80: 11,19 2021.06.07 | I80: 11,19 2021.06.07 | J80: В | K80: 0 | L80: КЛ | O80: 1 | P80: 0 | Q80: 0 | R80: 0 | S80: 0 | T80: 0 | U80: 0 | V80: 0 | W80: 1 | X80: 0 | Y80: ООО Сургутские городские электрические сети | Z80: Скан оперативного журнала ст. 260 | AA80: 3.4.14 | AB80: 4.21 | AC80: 0
B81: X | C81: 72 | D81: АО "ЮРЭСК" Березовский филиал | E81: ВЛ | F81: КПП 6/20 Игрим №11-2114, ВЛЗ-20 Н. Нарыкары | G81: 20 (21) | H81: 13,50 2021.06.09 | I81: 14,00 2021.06.09 | J81: В | K81: 0.17 | L81: ВЛ | M81: 0 | N81: 0 | O81: 240 | P81: 0 | Q81: 0 | R81: 240 | S81: 0 | T81: 0 | U81: 0 | V81: 240 | W81: 0 | X81: 10 | Z81: Акт № 4/21 09.06.21 | AA81: 3.4.14 | AB81: 4.21 | AC81: 1
B82: X | C82: 73 | D82: АО "ЮРЭСК" Няганский ф-л | E82: ВЛ | F82: РП 5-6, ВЛ-10 РП-6-2 | G82: 10 (10.5) | H82: 11,09 2021.06.14 | I82: 11,26 2021.06.14 | J82: В | K82: 0.28 | L82: ТП 5-1437, ТП 5-1440, ТП 5-1441, ТП 5-1457, ТП 5-1461, ТП 5-1415, ТП 5-1435, ТП 5-1433 | O82: 11 | P82: 0 | Q82: 1 | R82: 10 | S82: 0 | T82: 0 | U82: 11 | V82: 0 | W82: 0 | X82: 61 | Z82: Акт № 60 14.06.21 | AA82: 3.4.8.1 | AB82: 4.4 | AC82: 0
B83: X | C83: 74 | D83: АО "ЮРЭСК" Няганский ф-л | E83: ВЛ | F83: РП-5-6, ВЛ-10 Аэропорт-2 | G83: 10 (10.5) | H83: 11,09 2021.06.14 | I83: 12,28 2021.06.14 | J83: В | K83: 1.32 | L83: ТП 5-1437, ТП 5-1440, ТП 5-1441, ТП 5-1457, ТП 5-1461, ТП 5-1415, ТП 5-1435, ТП 5-1433 | O83: 11 | P83: 0 | Q83: 1 | R83: 10 | S83: 0 | T83: 0 | U83: 11 | V83: 0 | W83: 0 | X83: 61 | Z83: Акт № 61 14.06.21 | AA83: 3.4.8.1 | AB83: 4.4 | AC83: 0
B84: X | C84: 75 | D84: АО "ЮРЭСК" Няганский филиал | E84: ВЛ | F84: ПС 110 кВ Сергино, ВЛ-10 Поселок-1 | G84: 10 (10.5) | H84: 13,15 2021.06.14 | I84: 13,15 2021.06.14 | J84: В | K84: 0 | L84: ВЛ | O84: 0 | P84: 0 | Q84: 0 | R84: 0 | S84: 0 | T84: 0 | U84: 0 | V84: 0 | W84: 0 | X84: 0 | Z84: Скан оперативного журнала ст. 297 | AA84: 3.4.12.3 | AB84: 4.21 | AC84: 0
B85: X | C85: 76 | D85: АО "ЮРЭСК" Березовский филиал | E85: ВЛ | F85: КПП 6/20 № 11-1053 Березово, ВЛ-20 Пугоры | G85: 20 (21) | H85: 12,15 2021.06.15 | I85: 12,25 2021.06.15 | J85: В | K85: 0.17 | L85: ВЛ | O85: 303 | P85: 0 | Q85: 0 | R85: 303 | S85: 0 | T85: 0 | U85: 0 | V85: 303 | W85: 0 | X85: 10 | Z85: Акт № 5/21 15.06.21 | AA85: 3.4.14 | AB85: 4.21 | AC85: 1
B86: X | C86: 77 | D86: АО "ЮРЭСК" Кондинский филиал | E86: ВЛ | F86: ЗРУ-6 НПС Кума, ВЛ-6 Поселок | G86: 6 (6.3) | H86: 12,20 2021.06.15 | I86: 14,30 2021.06.15 | J86: В | K86: 2.17 | L86: ТП № 12-600,ТП № 12-601,ТП № 12-602,ТП № 12-603,ТП № 12-604,ТП № 12-605,ТП № 12-606,ТП № 12-607,ТП № 12-608,ТП № 12-609,ТП № 12-610,ТП № 12-611,ТП № 12-612,ТП № 12-613,ТП № 12-619,ТП № 12-620 | M86: ТП № 12-600,ТП № 12-601,ТП № 12-602,ТП № 12-603,ТП № 12-604,ТП № 12-605,ТП № 12-606,ТП № 12-607,ТП № 12-608,ТП № 12-609,ТП № 12-610,ТП № 12-611,ТП № 12-612,ТП № 12-613,ТП № 12-619,ТП № 12-620 | N86: 0 | O86: 15 | P86: 0 | Q86: 11 | R86: 4 | S86: 0 | T86: 0 | U86: 0 | V86: 15 | W86: 0 | X86: 0 | Z86: АКТ № 13 | AA86: 3.4.12.5 | AB86: 4.21 | AC86: 0
B87: X | C87: 78 | D87: АО "ЮРЭСК" Няганский филиал | E87: ВЛ | F87: ВЛ-110 Белоярская-Шеркалы | G87: 110 | H87: 13,37 2021.06.15 | I87: 13,50 2021.06.15 | J87: В | K87: 0.22 | L87: ВЛ | O87: 0 | P87: 0 | Q87: 0 | R87: 0 | S87: 0 | T87: 0 | U87: 0 | V87: 0 | W87: 0 | X87: 0 | Z87: Акт №9 15.06.2021 | AA87: 3.4.10 | AB87: 4.12 | AC87: 0
B88: X | C88: 79 | D88: АО "ЮРЭСК" Кондинский филиал | E88: ВЛ | F88: ПС 110 кВ Выкатная, ВЛ 35 кВ Выкатная-Кама | G88: 35 | H88: 15,22 2021.06.15 | I88: 15,22 2021.06.15 | J88: В | K88: 0 | L88: ВЛ | O88: 0 | P88: 0 | Q88: 0 | R88: 0 | S88: 0 | T88: 0 | U88: 0 | V88: 0 | W88: 0 | X88: 0 | Z88: Скан оперативного журнала ст. 302 | AA88: 3.4.12.3 | AB88: 4.21 | AC88: 0
B89: X | C89: 80 | D89: АО "ЮРЭСК" Ханты-Мансийский район | E89: ВЛ | F89: КПП-20/10 кВ №18-4041, ВЛ-10 Нялино, ф.1 | G89: 10 (10.5) | H89: 17,40 2021.06.15 | I89: 20,06 2021.06.15 | J89: В | K89: 2.43 | L89: ТП | M89: 0 | N89: 0 | O89: 51 | P89: 0 | Q89: 0 | R89: 51 | S89: 0 | T89: 0 | U89: 18 | V89: 33 | W89: 0 | X89: 0 | Z89: Скан оперативного журнала ст. 302-303 | AA89: 3.4.12.3 | AB89: 4.21 | AC89: 0
B90: X | C90: 81 | D90: АО "ЮРЭСК" Кондинский филиал | E90: РП | F90: РП-12-3, 1С-10 | G90: 10 (10.5) | H90: 22,10 2021.06.15 | I90: 22,47 2021.06.15 | J90: В | K90: 0.62 | L90: ТП №12-28,ТП №12-18,ТП №12-40,ТП №12-76 2Т,ТП №12-3 1Т,ТП №12-85 1Т | M90: ТП №12-28,ТП №12-18,ТП №12-40,ТП №12-76 2Т,ТП №12-3 1Т,ТП №12-85 1Т | N90: 0 | O90: 6 | P90: 0 | Q90: 1 | R90: 5 | S90: 0 | T90: 0 | U90: 0 | V90: 6 | W90: 0 | X90: 0 | Z90: АКТ № 14 | AA90: 3.4.14 | AB90: 4.12 | AC90: 1
B91: X | C91: 82 | D91: АО "ЮРЭСК" Няганский филиал | E91: ВЛ | F91: ВЛ-110 Белоярская-Шеркалы | G91: 110 | H91: 05,11 2021.06.17 | I91: 05,11 2021.06.17 | J91: В | K91: 0 | L91: ВЛ | O91: 0 | P91: 0 | Q91: 0 | R91: 0 | S91: 0 | T91: 0 | U91: 0 | V91: 0 | W91: 0 | X91: 0 | Z91: Скан оперативного журнала ст.309 | AA91: 3.4.10 | AB91: 4.21 | AC91: 0
B92: X | C92: 83 | D92: АО "ЮРЭСК" ЮТЭК-ХМР | E92: ВЛ | F92: ПС 110 кВ Луговская, ВЛ-10 Белогорье-1 | G92: 10 (10.5) | H92: 15,06 2021.06.17 | I92: 15,06 2021.06.17 | J92: В | K92: 0 | L92: ВЛ | O92: 0 | P92: 0 | Q92: 0 | R92: 0 | S92: 0 | T92: 0 | U92: 0 | V92: 0 | W92: 0 | X92: 0 | Z92: Скан журнала аварийных отключений | AA92: 3.4.12.3 | AB92: 4.21 | AC92: 0
B93: X | C93: 84 | D93: АО "ЮРЭСК" АО ЮРЭСК | E93: ВЛ | F93: ВЛ-110 кВ Югра-Самарово-2 | G93: 110 | H93: 15,13 2021.06.17 | I93: 15,19 2021.06.17 | J93: В | K93: 0.1 | L93: ВЛ | O93: 1 | P93: 0 | Q93: 0 | R93: 0 | S93: 0 | T93: 0 | U93: 0 | V93: 0 | W93: 1 | X93: 0 | Y93: ООО "Ханты-Мансийские городские электрические сети" | Z93: Скан оперативного журнала ст.315 | AA93: 3.4.12.3 | AB93: 4.21 | AC93: 0
B94: X | C94: 85 | D94: АО "ЮРЭСК" АО ЮРЭСК | E94: ВЛ | F94: ВЛ-110 кВ Югра-ГИБДД-2 | G94: 110 | H94: 15,23 2021.06.17 | I94: 16,01 2021.06.17 | J94: В | K94: 0.63 | L94: ВЛ | O94: 1 | P94: 0 | Q94: 0 | R94: 0 | S94: 0 | T94: 0 | U94: 0 | V94: 0 | W94: 1 | X94: 0 | Y94: ООО "Ханты-Мансийские городские электрические сети" | Z94: Скан оперативного журнала ст. 316-317 | AA94: 3.4.12.3 | AB94: 4.21 | AC94: 0
B95: X | C95: 86 | D95: АО "ЮРЭСК" АО ЮРЭСК | E95: ВЛ | F95: ВЛ-110 кВ Югра-ГИБДД-1 | G95: 110 | H95: 15,23 2021.06.17 | I95: 15,26 2021.06.17 | J95: В | K95: 0.05 | L95: ВЛ | O95: 1 | P95: 0 | Q95: 0 | R95: 0 | S95: 0 | T95: 0 | U95: 0 | V95: 0 | W95: 1 | X95: 0 | Y95: ООО "Ханты-Мансийские городские электрические сети" | Z95: Скан оперативного журнала ст.316 | AA95: 3.4.12.3 | AB95: 4.21 | AC95: 0
B96: X | C96: 87 | D96: АО "ЮРЭСК" АО ЮРЭСК | E96: ВЛ | F96: ВЛ-10 Шапша-2 | G96: 10 (10.5) | H96: 15,27 2021.06.17 | I96: 16,39 2021.06.17 | J96: В | K96: 1.2 | L96: ВЛ | O96: 1 | P96: 0 | Q96: 0 | R96: 0 | S96: 0 | T96: 0 | U96: 0 | V96: 0 | W96: 1 | X96: 0 | Y96: АО "ЮТЭК-РС" | Z96: Скан оперативного журнала ст.316-317 | AA96: 3.4.12.3 | AB96: 4.21 | AC96: 0
B97: X | C97: 88 | D97: АО "ЮРЭСК" ЮТЭК-ХМР | E97: ВЛ | F97: ВЛ-20 Сыньеганский-Пырьях | G97: 20 (21) | H97: 15,44 2021.06.17 | I97: 15,51 2021.06.17 | J97: В | K97: 0.12 | L97: ТП 18-4015 | M97: 0 | N97: 0 | O97: 21 | P97: 0 | Q97: 0 | R97: 21 | S97: 0 | T97: 0 | U97: 2 | V97: 19 | W97: 0 | X97: 0 | Z97: Скан оперативного журнала ст.316 | AA97: 3.4.12.3 | AB97: 4.21 | AC97: 0
B98: X | C98: 89 | D98: АО "ЮРЭСК" Березовский филиал | E98: ВЛ | F98: КПП 6/20 Игрим №11-2114, ВЛЗ-20 Н. Нарыкары | G98: 20 (21) | H98: 12,15 2021.06.19 | I98: 12,30 2021.06.19 | J98: В | K98: 0.25 | L98: ВЛ | O98: 240 | P98: 0 | Q98: 0 | R98: 240 | S98: 0 | T98: 0 | U98: 0 | V98: 240 | W98: 0 | X98: 10 | Z98: Акт № 7/21 19.06.21 | AA98: 3.4.8.5 | AB98: 4.4 | AC98: 0
B99: X | C99: 90 | D99: АО "ЮРЭСК" Советский филиал | E99: ВЛ | F99: ПС 110/10 кВ "Алябьево" ВЛ-10 кВ ф."Пионерский-2" | G99: 10 (10.5) | H99: 13,53 2021.06.20 | I99: 16,00 2021.06.20 | J99: В | K99: 2.12 | L99: ТП 16-207;ТП 16-209;ТП 16-211; ТП 16-212;ТП 16-213;ТП 16-222; ТП 16-224;ТП 16-206;ТП 16-214; ТП 16-216;ТП 16-223.ТП 16-217П;ТП 16-220П;ТП 16-228П;ТП 16-230П | M99: КНС-1; Дет Сад-1; Дет дом «Берегиня», Больница; Котельная-2шт. СППВ (очистка воды) | N99: 0 | O99: 280 | P99: 2 | Q99: 6 | R99: 272 | S99: 0 | T99: 0 | U99: 4 | V99: 276 | W99: 0 | X99: 0 | Z99: Акт №47/21 2021.06.20 | AA99: 3.4.12.2 | AB99: 4.17 | AC99: 0
B100: X | C100: 91 | D100: АО "ЮРЭСК" Советский филиал | E100: ВЛ | F100: ПС 110/10 кВ "Алябьево" ВЛ-10 кВ ф."Малиновский" | G100: 10 (10.5) | H100: 14,35 2021.06.20 | I100: 19,07 2021.06.20 | J100: В | K100: 4.53 | L100: ТП 16-401;ТП 16-402;ТП16-403;ТП 16-411;ТП1 6-413,ТП 16-414;ТП 16-418;ТП 16-404;ТП 16-405;ТП 16-408;ТП 16-409;ТП 16-410;ТП 16-416;ТП 16-417;ТП 16-419 | M100: Котельная-1; Школа-1; Дет.сад -1; Скважины-1; ВОС-1; КОС-1; КНС-2; Амбулатория-2 | N100: 0 | O100: 598 | P100: 4 | Q100: 9 | R100: 585 | S100: 0 | T100: 0 | U100: 0 | V100: 598 | W100: 0 | X100: 0 | Z100: Акт №47/21 2021.06.20 | AA100: 3.4.12.2 | AB100: 4.17 | AC100: 0
B101: X | C101: 92 | D101: АО "ЮРЭСК" Няганьский филиал | E101: КВЛ | F101: РП-22, ВЛ-10 ф. 14-28-2 | G101: 10 (10.5) | H101: 16,30 2021.06.20 | I101: 17,02 2021.06.20 | J101: В | K101: 0.53 | L101: ТП 5-1431 Т-1, ТП 5-1425 Т-2, ТП 5-1412 Т-2, ТП 5-1428 Т-2 | M101: 0 | N101: 0 | O101: 4 | P101: 0 | Q101: 0 | R101: 4 | S101: 0 | T101: 0 | U101: 0 | V101: 4 | W101: 0 | X101: 0 | Z101: Акт №62 20.06.21 | AA101: 3.4.8.5 | AB101: 4.17 | AC101: 0
B102: X | C102: 93 | D102: АО "ЮРЭСК" АО "ЮТЭК-Когалым" | E102: КЛ | F102: ЦРП-1, КЛ-10 ф.№13 | G102: 10 (10.5) | H102: 08,33 2021.06.22 | I102: 09,10 2021.06.22 | J102: В | K102: 0.62 | L102: ТП№2-2 Т-2, ТП№2-4 Т-2, ТП№2-5 Т-2, ТП№2-6 Т-2, ТП№2-10 Т-2, ТП№2-56 Т-2 | N102: МЛПУ "Когалымская городская больница", Центр гигиены и эпидемиологии в ХМАО в г. Когалым, МАУ "МФЦ" | O102: 26 | P102: 8 | Q102: 7 | R102: 11 | S102: 0 | T102: 0 | U102: 19 | V102: 7 | W102: 0 | X102: 341.91 | Z102: Акт № 01/20 22.06.2021 | AA102: 3.4.8.1 | AB102: 4.4 | AC102: 0
B103: X | C103: 94 | D103: АО "ЮРЭСК" Березовский филиал | E103: ВЛ | F103: КПП 6/20 №11-2114, ВЛЗ-20 Ванзетур | G103: 20 (21) | H103: 03,00 2021.06.28 | I103: 04,00 2021.06.28 | J103: В | K103: 1 | L103: ВЛ | O103: 181 | P103: 0 | Q103: 0 | R103: 181 | S103: 0 | T103: 0 | U103: 0 | V103: 181 | W103: 0 | X103: 60 | Z103: Акт № 8/21 28.06.21 | AA103: 3.4.14 | AB103: 4.21 | AC103: 1
B104: X | C104: 95 | D104: АО "ЮРЭСК" Березовский филиал | E104: ВЛ | F104: ВЛЗ-20кВ Шайтанка | G104: 20 (21) | H104: 01,15 2021.07.01 | I104: 02,09 2021.07.01 | J104: В | K104: 0.9 | L104: ВЛ | M104: 0 | N104: 0 | O104: 1 | P104: 0 | Q104: 0 | R104: 1 | S104: 0 | T104: 0 | U104: 1 | V104: 0 | W104: 0 | X104: 435 | Z104: Акт №10/21 01.07.2021 | AA104: 3.4.12.3 | AB104: 4.21 | AC104: 1
B105: X | C105: 96 | D105: АО "ЮРЭСК" Березовский филиал | E105: ВЛ | F105: КПП 6/20 № 11-1053 Березово, ВЛ-20 Пугоры | G105: 20 (21) | H105: 04,10 2021.07.01 | I105: 04,35 2021.07.01 | J105: В | K105: 0.42 | L105: ВЛ | M105: 0 | N105: 0 | O105: 5 | P105: 0 | Q105: 0 | R105: 5 | S105: 0 | T105: 0 | U105: 0 | V105: 5 | W105: 0 | X105: 806 | Z105: Акт №11/21 01.07.2021 | AA105: 3.4.12.3 | AB105: 4.21 | AC105: 1
B106: X | C106: 97 | D106: АО "ЮРЭСК" Няганьский филиал | E106: ВЛ | F106: ПС 110/10 Сергино, ВЛ-10 ПТПС | G106: 10 (10.5) | H106: 05,40 2021.07.01 | I106: 15,11 2021.07.01 | J106: В | K106: 9.52 | L106: ВЛ | O106: 1 | P106: 0 | Q106: 0 | R106: 1 | S106: 0 | T106: 0 | U106: 1 | V106: 0 | W106: 0 | X106: 0 | Z106: ОЖ 01.07.2021 | AA106: 3.4.12.3 | AB106: 4.21 | AC106: 1
B107: X | C107: 98 | D107: АО "ЮРЭСК" Няганьский филиал | E107: ВЛ | F107: ПС 110 кВ Кода, ВЛ-10 Водозабор | G107: 10 (10.5) | H107: 13,42 2021.07.01 | I107: 19,19 2021.07.01 | J107: В | K107: 5.62 | L107: ВЛ | O107: 10 | P107: 1 | Q107: 4 | R107: 5 | S107: 0 | T107: 0 | U107: 0 | V107: 10 | W107: 0 | X107: 0 | Z107: ОЖ 01.07.2021 | AA107: 3.4.12.3 | AB107: 4.21 | AC107: 1
B108: X | C108: 99 | D108: АО "ЮРЭСК" г. Ханты-Мансийск | E108: ВЛ | F108: ПС 35 кВ "Ярки", ВЛ-10 "Базьяны" | G108: 10 (10.5) | H108: 11,37 2021.07.02 | I108: 12,41 2021.07.02 | J108: В | K108: 1.07 | L108: ВЛ | O108: 3 | P108: 0 | Q108: 0 | R108: 3 | S108: 0 | T108: 0 | U108: 0 | V108: 3 | W108: 0 | X108: 0 | Z108: ОЖ 02.07.2021 | AA108: 3.4.14 | AB108: 4.21 | AC108: 1
B109: X | C109: 100 | D109: АО "ЮРЭСК" Кондинский филиал | E109: ВЛ | F109: ПС 110 кВ Сухой Бор, ВЛ-35 Мулымская | G109: 35 | H109: 14,16 2021.07.02 | I109: 14,55 2021.07.02 | J109: В | K109: 0.65 | L109: ТП 12-818,ТП 12-819, ТП 12-820, ТП 12-840, ТП 12-822, ТП 12-823, ТП 12-824,ТП 12-839, ТП 12-841, ТП 12-825 | O109: 6 | P109: 0 | Q109: 0 | R109: 5 | S109: 0 | T109: 0 | U109: 0 | V109: 5 | W109: 1 | X109: 0 | Z109: ОЖ 25.08.2021 | AA109: 3.4.14 | AB109: 4.21 | AC109: 1
B110: X | C110: 101 | D110: АО "ЮРЭСК" Няганьский филиал | E110: ВЛ | F110: РП-15, ВЛ-10 УДС | G110: 10 (10.5) | H110: 15,25 2021.07.03 | I110: 15,48 2021.07.03 | J110: В | K110: 0.38 | L110: ТП № 5-2108, ТП № 5-2106, ТП № 5-2107, ТП № 5-2022 ТП Айдаков, ТП современные технологии, ТП Крокус, ТП РН Энерго, ТП СТК, ТП Ютас, ТП № 5-2037, ТП № 5-2109 | O110: 1 | P110: 0 | Q110: 0 | R110: 1 | S110: 0 | T110: 0 | U110: 1 | V110: 0 | W110: 0 | X110: 89.527 | Z110: Акт №63/07/5 03.07.2021 | AA110: 3.4.12.3 | AB110: 4.21 | AC110: 1
B111: X | C111: 102 | D111: АО "ЮРЭСК" АО "ЮТЭК-Когалым" | E111: КЛ | F111: ЦРП № 2-13, КЛ-6 ф. 13-22 | G111: 6 (6.3) | H111: 13,11 2021.07.05 | I111: 14,44 2021.07.05 | J111: В | K111: 1.55 | L111: КЛ | O111: 2 | P111: 0 | Q111: 0 | R111: 2 | S111: 0 | T111: 0 | U111: 0 | V111: 2 | W111: 0 | X111: 0 | Z111: Акт №02/21 05.07.2021 | AA111: 3.4.14 | AB111: 4.1 | AC111: 1
B112: X | C112: 103 | D112: АО "ЮРЭСК" Няганьский филиал | E112: ВЛ | F112: ПС 110 кВ Заречная, ВЛ-6 КНС-2 | G112: 6 (6.3) | H112: 10,17 2021.07.08 | I112: 16,54 2021.07.08 | J112: В | K112: 6.62 | L112: ТП № 5-3006 | O112: 1 | P112: 0 | Q112: 0 | R112: 1 | S112: 0 | T112: 0 | U112: 1 | V112: 0 | W112: 0 | X112: 0 | Z112: Акт №64/07/5 08.07.2021 | AA112: 3.4.14 | AB112: 4.21 | AC112: 1
B113: X | C113: 104 | D113: АО "ЮРЭСК" Няганьский филиал | E113: ВЛ | F113: РП-5-7, ВЛ-10 фид. №5-04 | G113: 10 (10.5) | H113: 12,23 2021.07.08 | I113: 13,03 2021.07.08 | J113: В | K113: 0.67 | L113: ТП № 5-501, ТП № 5-502, ТП № 5-507, ТП № 5-503, ТП № 5-504,ТП № 5-5 | O113: 1 | P113: 0 | Q113: 0 | R113: 1 | S113: 0 | T113: 0 | U113: 1 | V113: 0 | W113: 0 | X113: 17.51 | Z113: Акт №65/07/5 08.07.2021 | AA113: 3.4.14 | AB113: 4.21 | AC113: 1
B114: X | C114: 105 | D114: АО "ЮРЭСК" Березовский филиал | E114: ВЛ | F114: КПП-11-1053, ВЛЗ-20кВ Пугоры | G114: 20 (21) | H114: 23,50 2021.07.08 | I114: 00,12 2021.07.09 | J114: В | K114: 0.37 | L114: ВЛ | M114: 0 | N114: 0 | O114: 1 | P114: 0 | Q114: 0 | R114: 1 | S114: 0 | T114: 0 | U114: 1 | V114: 0 | W114: 0 | X114: 52 | Z114: Акт №15/21 01.07.2021 | AA114: 3.4.14 | AB114: 4.21 | AC114: 1
B115: X | C115: 106 | D115: АО "ЮРЭСК" Няганьский филиал | E115: ВЛ | F115: РП-5-6, ВЛ-10 Аэропорт-2 | G115: 10 (10.5) | H115: 23,50 2021.07.09 | I115: 07,30 2021.07.10 | J115: В | K115: 7.67 | L115: ВЛ | O115: 0 | P115: 0 | Q115: 0 | R115: 0 | S115: 0 | T115: 0 | U115: 0 | V115: 0 | W115: 0 | X115: 0 | Z115: Акт №66/07/5 08.07.2021 | AA115: 3.4.14 | AB115: 4.21 | AC115: 1
B116: X | C116: 107 | D116: АО "ЮРЭСК" АО "ЮТЭК-Когалым" | E116: КЛ | F116: ПС 35 кВ №35 Поселковая, В-6 ф.35-6, | G116: 6 (6.3) | H116: 17,13 2021.07.12 | I116: 17,47 2021.07.12 | J116: В | K116: 0.57 | L116: КЛ | O116: 1 | P116: 0 | Q116: 0 | R116: 1 | S116: 0 | T116: 0 | U116: 1 | V116: 0 | W116: 0 | X116: 0 | Z116: Акт №03/21 12.07.2021 | AA116: 3.4.14 | AB116: 4.12 | AC116: 1
B117: X | C117: 108 | D117: АО "ЮРЭСК" АО "ЮТЭК-Когалым" | E117: ВЛ | F117: ЦРП № 2-6, ВЛ-6 кВ ф.18 | G117: 6 (6.3) | H117: 17,13 2021.07.12 | I117: 19,20 2021.07.12 | J117: В | K117: 2.12 | L117: ВЛ | O117: 1 | P117: 0 | Q117: 0 | R117: 1 | S117: 0 | T117: 0 | U117: 1 | V117: 0 | W117: 0 | X117: 0 | Z117: Акт №03/21 12.07.2021 | AA117: 3.4.14 | AB117: 4.12 | AC117: 1
B118: X | C118: 109 | D118: АО "ЮРЭСК" Ханты-Мансийск | E118: ВЛ | F118: ПС 35 кВ Ярки, ВЛ-10 Базьяны | G118: 10 (10.5) | H118: 00,21 2021.07.15 | I118: 02,15 2021.07.15 | J118: В | K118: 1.9 | L118: ВЛ | O118: 502 | P118: 0 | Q118: 0 | R118: 500 | S118: 0 | T118: 0 | U118: 0 | V118: 500 | W118: 2 | X118: 0 | Z118: ОЖ 15.07.2021 | AA118: 3.4.12.3 | AB118: 4.21 | AC118: 0
B119: X | C119: 110 | D119: АО "ЮРЭСК" Няганьский филиал | E119: КЛ | F119: РП-22, КЛ-10 ТП-1407-1 | G119: 10 (10.5) | H119: 11,41 2021.07.15 | I119: 15,48 2021.07.15 | J119: В | K119: 4.12 | L119: ТП № 5-1407, ТП № 5-1427, ТП № 5-1421, ТП № 5-1455, ТП № 14-30, ТП № 5-1429, ТП № 5-1454, ТП № 5-1451, ТП № 5-1408 | O119: 2 | P119: 0 | Q119: 0 | R119: 1 | S119: 0 | T119: 0 | U119: 1 | V119: 0 | W119: 1 | X119: 1410 | Z119: Акт №68/07/5 15.07.2021 | AA119: 3.4.14 | AB119: 4.12 | AC119: 1
B120: X | C120: 111 | D120: АО "ЮРЭСК" Няганьский филиал | E120: КЛ | F120: ПС 110/10 кВ Чара, КЛ-10 Пождепо-1 | G120: 10 (10.5) | H120: 11,49 2021.07.15 | I120: 12,24 2021.07.15 | J120: В | K120: 0.58 | L120: ТП № 5-1507, ТП № 5-1432, ТП № 5-1434, ТП № 5-1418, ТП № 5-1449 | O120: 1 | P120: 0 | Q120: 0 | R120: 1 | S120: 0 | T120: 0 | U120: 1 | V120: 0 | W120: 0 | X120: 154.4 | Z120: Акт №67/07/5 15.07.2021 | AA120: 3.4.3 | AB120: 4.4 | AC120: 1
B121: X | C121: 112 | D121: АО "ЮРЭСК" Кондинский филиал | E121: ВЛ | F121: ВЛ-110 кВ Сотник-Тавда-2 | G121: 110 | H121: 04,49 2021.07.16 | I121: 04,49 2021.07.16 | J121: В | K121: 0 | L121: ВЛ | O121: 0 | P121: 0 | Q121: 0 | R121: 0 | S121: 0 | T121: 0 | U121: 0 | V121: 0 | W121: 0 | X121: 0 | Z121: ОЖ16.07.2021 | AA121: 3.4.14 | AB121: 4.21 | AC121: 1
B122: X | C122: 113 | D122: АО "ЮРЭСК" Березовский филиал | E122: ВЛ | F122: ВЛ-110 кВ Игрим-Березово-1,2 | G122: 110 | H122: 12,31 2021.07.18 | I122: 12,31 2021.07.18 | J122: В | K122: 0 | L122: ВЛ | M122: 0 | N122: 0 | O122: 0 | P122: 0 | Q122: 0 | R122: 0 | S122: 0 | T122: 0 | U122: 0 | V122: 0 | W122: 0 | X122: 0 | Z122: Акт №13/21 01.07.2021 | AA122: 3.4.12.3 | AB122: 4.21 | AC122: 1
B123: X | C123: 114 | D123: АО "ЮРЭСК" Березовский филиал | E123: ВЛ | F123: КПП-6/20 Игрим № 11-2114, ВЛЗ-20 кВ Н. Нарыкары | G123: 20 (21) | H123: 15,00 2021.07.18 | I123: 16,20 2021.07.18 | J123: В | K123: 1.33 | L123: ВЛ | M123: 0 | N123: 0 | O123: 3 | P123: 0 | Q123: 0 | R123: 3 | S123: 0 | T123: 0 | U123: 3 | V123: 0 | W123: 0 | X123: 208 | Z123: Акт №13/21 01.07.2021 | AA123: 3.4.12.3 | AB123: 4.21 | AC123: 1
B124: X | C124: 115 | D124: АО "ЮРЭСК" г. Ханты-Мансийск | E124: КЛ | F124: ПС 110 кВ Западная, В-10 РП-41-2 | G124: 10 (10.5) | H124: 09,32 2021.07.20 | I124: 09,32 2021.07.20 | J124: В | K124: 0 | L124: КЛ | O124: 1 | P124: 0 | Q124: 0 | R124: 0 | S124: 0 | T124: 0 | U124: 0 | V124: 0 | W124: 1 | X124: 0 | Z124: ОЖ 20.07.2021 | AA124: 3.4.12.3 | AB124: 4.21 | AC124: 1
B125: X | C125: 116 | D125: АО "ЮРЭСК" Советский филиал | E125: КЛ | F125: ПС 110/10 кВ "Хвойная" ВЛ-10 кВ ф."РП 4-1" | G125: 10 (10.5) | H125: 15,40 2021.07.21 | I125: 16,07 2021.07.21 | J125: В | K125: 0.45 | L125: ТП 9-1-1,ТП 9-1-3,ТП 9-1-4,ТП 9-1-5,ТП 9-1-6,ТП 9-1-7,ТП 9-1 -9,ТП 9-1-10,ТП 2-1,ТП 9-3-5,ТП 9-3-6,ТП 9-3-7,ТП 9-6-10 | O125: 9 | P125: 2 | Q125: 2 | R125: 5 | S125: 0 | T125: 0 | U125: 0 | V125: 9 | W125: 0 | X125: 0 | Z125: Акт №59/21 21.07.2021 | AA125: 3.4.8 | AB125: 4.12, 4.15 | AC125: 1
B126: X | C126: 117 | D126: АО "ЮРЭСК" Кондинский филиал | E126: ВЛ | F126: ПС 35 кВ Луговая, ВЛ-10 Поселок | G126: 10 (10.5) | H126: 07,52 2021.07.22 | I126: 10,06 2021.07.22 | J126: В | K126: 2.23 | L126: ТП 12-415, ТП 12-401, ТП 12-4191Т, ТП 12-403, ТП 12-412, ТП 12-402, ТП 12-406, ТП 000 Импулст, ТП ООО Импульс | O126: 8 | P126: 0 | Q126: 1 | R126: 7 | S126: 0 | T126: 0 | U126: 8 | V126: 0 | W126: 0 | X126: 0 | Z126: Акт №15 22.07.2021 | AA126: 3.4.10 | AB126: 4.14 | AC126: 1
B127: X | C127: 118 | D127: АО "ЮРЭСК" Кондинский филиал | E127: ВЛ | F127: ПС 35 кВ Луговая, ВЛ-10 Собственные нужды | G127: 10 (10.5) | H127: 07,53 2021.07.22 | I127: 19,05 2021.07.22 | J127: В | K127: 11.2 | L127: ТП 12-418 | O127: 1 | P127: 0 | Q127: 0 | R127: 1 | S127: 0 | T127: 0 | U127: 1 | V127: 0 | W127: 0 | X127: 0 | Z127: Акт №16 22.07.2021 | AA127: 3.4.14 | AB127: 4.10 | AC127: 1
B128: X | C128: 119 | D128: АО "ЮРЭСК" Ханты-Мансийск | E128: КВЛ | F128: ПС 35 кВ Ярки ВЛ-10 Ярки-1 | G128: 10 (10.5) | H128: 10,08 2021.07.22 | I128: 11,32 2021.07.22 | J128: В | K128: 1.4 | L128: КВЛ | O128: 5 | P128: 0 | Q128: 0 | R128: 5 | S128: 0 | T128: 0 | U128: 5 | V128: 0 | W128: 0 | X128: 0 | Z128: ОЖ 22.07.2021 | AA128: 3.4.12.3 | AB128: 4.21 | AC128: 1
B129: X | C129: 120 | D129: АО "ЮРЭСК" Белоярский филиал | E129: ВЛ | F129: РП-5 "АЗС", ВЛ-6 ф. 10, участок от оп. 49 до оп. 123 | G129: 6 (6.3) | H129: 06,40 2021.07.23 | I129: 11,10 2021.07.23 | J129: В | K129: 4.5 | L129: КТП №10-001; №10-002; | O129: 2 | P129: 0 | Q129: 0 | R129: 2 | S129: 0 | T129: 0 | U129: 0 | V129: 2 | W129: 0 | X129: 0 | Z129: 23.07.2021 ОЖ | AA129: 3.4.12.3 | AB129: 4.21 | AC129: 1
B130: X | C130: 121 | D130: АО "ЮРЭСК" АО "ЮТЭК-Когалым" | E130: ВЛ | F130: ЦРП №2-5 ВЛ-10 ф.5 | G130: 10 (10.5) | H130: 17,24 2021.07.23 | I130: 18,15 2021.07.23 | J130: В | K130: 0.85 | L130: ВЛ | O130: 10 | P130: 0 | Q130: 0 | R130: 10 | S130: 0 | T130: 0 | U130: 0 | V130: 10 | W130: 0 | X130: 0 | Z130: ОЖ 23.07.2021 | AA130: 3.4.14 | AB130: 4.21 | AC130: 1
B131: X | C131: 122 | D131: АО "ЮРЭСК" Советский филиал | E131: ВЛ | F131: ПС 220 кВ Картопья, КВЛ-10 Поселок | G131: 10 (10.5) | H131: 11,58 2021.07.29 | I131: 12,49 2021.07.29 | J131: В | K131: 0.85 | L131: ТП 16-004;ТП 16-015;ТП 16-029;ТП 16-031;ТП 16-032;ТП 16-034;ТП 16-037;ТП 16-047;ТП 16-050;ТП16-051;ТП 16-056;ТП 16-057;ТП 16-066; ТП 16-102;ТП 16-139;ТП 16-169;ТП 16-170;ТП 16-182 | O131: 10 | P131: 2 | Q131: 3 | R131: 5 | S131: 0 | T131: 0 | U131: 0 | V131: 10 | W131: 0 | X131: 0 | Z131: Акт №60/21 29.07.2021 | AA131: 3.4.8.4 | AB131: 4.17 | AC131: 1
B132: X | C132: 123 | D132: АО "ЮРЭСК" АО "ЮТЭК-Когалым" | E132: ВЛ | F132: ПС 35 кВ №35 Поселковая, ВЛ-6 кВ ф.5 | G132: 6 (6.3) | H132: 10,13 2021.07.30 | I132: 11,16 2021.07.30 | J132: В | K132: 1.05 | L132: ВЛ | O132: 5 | P132: 0 | Q132: 0 | R132: 5 | S132: 0 | T132: 0 | U132: 0 | V132: 5 | W132: 0 | X132: 0 | Z132: ОЖ 30.07.2021 | AA132: 3.4.14 | AB132: 4.21 | AC132: 1
B133: X | C133: 124 | D133: АО "ЮРЭСК" Няганьский филиал | E133: КВЛ | F133: ПС 110 кВ Чара, В-10 РП-7-1 | G133: 10 (10.5) | H133: 12,08 2021.08.02 | I133: 12,37 2021.08.02 | J133: В | K133: 0.48 | L133: ТП5-601 1СШ, ТП5-602, ТП5-603, ТП5-606 1СШ, ТП5-607 1СШ, ТП5-501 1СШ, ТП5-502 1СШ, ТП5-510, ТП5-712 1СШ, ТП5-713 1СШ, ТП5-703, ТП5-704, ТП5-705, ТП5-706 1СШ, ТП5-407 1СШ, ТП5-406 1СШ | O133: 16 | P133: 0 | Q133: 0 | R133: 16 | S133: 0 | T133: 0 | U133: 16 | V133: 0 | W133: 0 | X133: 350.325 | Z133: Акт №69/08/5 | AA133: 3.4.8.5 | AB133: 4.4 | AC133: 1
B134: X | C134: 125 | D134: АО "ЮРЭСК" Кондинский филиал | E134: ВЛ | F134: ПС 35 кВ Кама, ВЛ-10 кВ Алтай | G134: 10 (10.5) | H134: 17,43 2021.08.02 | I134: 18,15 2021.08.02 | J134: В | K134: 0.53 | L134: ТП 12-721, Тп 12-722, ТП 12-723, Тп 12-724, ТП 12-725 | M134: 0 | N134: 0 | O134: 5 | P134: 0 | Q134: 0 | R134: 5 | S134: 0 | T134: 0 | U134: 0 | V134: 5 | W134: 0 | X134: 0 | Z134: ОЖ 02.08.2021 | AA134: 3.4.14 | AB134: 4.21 | AC134: 1
B135: X | C135: 126 | D135: АО "ЮРЭСК" АО "ЮТЭК-Когалым" | E135: КЛ | F135: ЦРП-2-8, КЛ-10 фид№ 14, 19 | G135: 10 (10.5) | H135: 12,17 2021.08.07 | I135: 13,00 2021.08.07 | J135: В | K135: 0.716 | L135: ТП №2-22 Т-1, ТП №2-23 Т-1, ТП №2-26 Т-1, ТП №2-52 Т-2. | N135: МКУ «УЖКХ г. Когалыма» наружное освещение, МАОУ "Средняя школа №6", МАДОУ "Золушка", ФКУ "ЦХиСО УМВД России по ХМАО" | O135: 40 | P135: 0 | Q135: 15 | R135: 25 | S135: 0 | T135: 0 | U135: 6 | V135: 34 | W135: 0 | X135: 0 | Z135: Акт №04/21 | AA135: 3.4.8.1 | AB135: 4.4 | AC135: 1
B136: X | C136: 127 | D136: АО "ЮРЭСК" АО "ЮТЭК-Когалым" | E136: ВЛ | F136: ЦРП № 2-13, ВЛ-6 ф. 13-06 | G136: 6 (6.3) | H136: 13,20 2021.08.10 | I136: 15,24 2021.08.10 | J136: В | K136: 2.066 | L136: ТП №2-138 Т-2, ТП №2-127, ТП №2-128, ТП №2-106, ТП-146, ТП-104, ТП-190 Т-2 | N136: МЛПУ "Когалымская городская больница", МКУ «УЖКХ г. Когалыма» наружное освещение, ООО "ЛУКОЙЛ ЭПУ Сервис" (ООО "Энергокомплекс") | O136: 22 | P136: 0 | Q136: 7 | R136: 15 | S136: 0 | T136: 0 | U136: 8 | V136: 14 | W136: 0 | X136: 0 | Z136: Акт №05/21 | AA136: 3.4.14 | AB136: 4.13 | AC136: 1
B137: X | C137: 128 | D137: АО "ЮРЭСК" | E137: КЛ | F137: ПС Самарово 2Т, 2С-10 | G137: 10 (10.5) | H137: 06,31 2021.08.11 | I137: 07,30 2021.08.11 | J137: В | K137: 0.98 | L137: ТП | O137: 1 | P137: 0 | Q137: 0 | R137: 0 | S137: 0 | T137: 0 | U137: 0 | V137: 0 | W137: 1 | X137: 0 | Y137: ООО "Ханты-Мансийские городские электрические сети" | Z137: Акт №64 | AA137: 3.4.10 | AB137: 4.12 | AC137: 1
B138: X | C138: 129 | D138: АО "ЮРЭСК" Советский филиал | E138: КВЛ | F138: ПС 110/10 Геологическая, ВЛ-10 Жил. поселок-2 | G138: 10 (10.5) | H138: 09,17 2021.08.12 | I138: 10,46 2021.08.12 | J138: В | K138: 1.48 | L138: ТП 9-11-6,ТП 9-11-8,ТП 11-10,ТП 11-11,ТП 9-12-8,ТП 9-12-9,ТП 12-10,ТП 13-15,ТП 9-13-16,ТП 9-14-9, ТП 9-14-10,ТП 9-14-11,ТП 14-17,ТП 17-2,ТП 9-17-6,ТП 9-11-12,ТП 9-12-5,ТП 9-12-8,ТП 9-12-9,ТП 9-13-4,ТП 9-13-5,ТП 9-13-5Н,ТП 9-13-6,ТП 9-13-7,ТП 9-13-8,ТП 9-13-9,ТП 13-11,ТП 9-13-12,ТП 13-13 | M138: Котельная-1 | N138: Дет.сад, школа, Котелдьные-5, | O138: 259 | P138: 0 | Q138: 7 | R138: 252 | S138: 0 | T138: 0 | U138: 8 | V138: 251 | W138: 0 | X138: 0 | Z138: Акт №63/21 | AA138: 3.4.8 | AB138: 4.4 | AC138: 1
B139: X | C139: 130 | D139: АО "ЮРЭСК" Березовский филиал | E139: ВЛ | F139: КПП 6/20 Игрим №11-2114, ВЛ-20 Н.Нарыкары | G139: 20 (21) | H139: 09,35 2021.08.12 | I139: 09,45 2021.08.12 | J139: В | K139: 0.17 | L139: ВЛ | M139: 0 | N139: 0 | O139: 240 | P139: 0 | Q139: 0 | R139: 240 | S139: 0 | T139: 0 | U139: 0 | V139: 240 | W139: 0 | X139: 25 | Z139: Акт №16/21 | AA139: 3.4.14 | AB139: 4.21 | AC139: 1
B140: X | C140: 131 | D140: АО "ЮРЭСК" Няганьский филиал | E140: ВЛ | F140: РП-5-7, ВЛ-10 фид. №7-15-1 | G140: 10 (10.5) | H140: 14,04 2021.08.12 | I140: 15,05 2021.08.12 | J140: В | K140: 1.02 | L140: ТП5-601 1СШ, ТП5-602, ТП5-603, ТП5-606 1СШ, ТП5-607 1СШ, ТП5-501 1СШ, ТП5-502 1СШ, ТП5-510, ТП5-712 2СШ, ТП5-713 2СШ, ТП5-703, ТП5-704, ТП5-705, ТП5-706 1СШ | O140: 14 | P140: 0 | Q140: 0 | R140: 14 | S140: 0 | T140: 0 | U140: 14 | V140: 0 | W140: 0 | X140: 396 | Z140: Акт №70/08/05 | AA140: 3.4.14 | AB140: 4.12 | AC140: 1
B141: X | C141: 132 | D141: АО "ЮРЭСК" АО "ЮТЭК-Когалым" | E141: ВЛ | F141: ЦРП №2-6, ВЛ-6 кВ фид№ 2-6-18 | G141: 6 (6.3) | H141: 10,50 2021.08.15 | I141: 16,22 2021.08.15 | J141: В | K141: 5.53 | L141: ТП №147, ТП №2-101, ТП №2-120 | O141: 11 | P141: 0 | Q141: 0 | R141: 11 | S141: 0 | T141: 0 | U141: 1 | V141: 10 | W141: 0 | X141: 0 | Z141: Акт №06/21 | AA141: 3.4.8.2 | AB141: 4.4 | AC141: 1
B142: X | C142: 133 | D142: АО "ЮРЭСК" Советский филиал | E142: КЛ | F142: ЦРП "Советский" КЛ-10 кВ яч.№7 Курчатова | G142: 10 (10.5) | H142: 12,00 2021.08.17 | I142: 12,40 2021.08.17 | J142: В | K142: 0.67 | L142: ТП 16-017, ТП 16-019 ТП 16-020,ТП 16-171П ТП 16-006, ТП 16-021 ТП 16-022, ТП 16-059 ТП 16-060, ТП 16-073 ТП 16-136, ТП 16-177 | M142: КНС | N142: 0 | O142: 431 | P142: 0 | Q142: 0 | R142: 431 | S142: 0 | T142: 0 | U142: 3 | V142: 428 | W142: 0 | X142: 0 | Z142: Акт №65/21 | AA142: 3.4.8.5 | AB142: 4.4 | AC142: 0
B143: X | C143: 134 | D143: АО "ЮРЭСК" п. Троица | E143: ВЛ | F143: ПС 110/10 кВ Луговская ВЛ-10 Троица-1 яч.№7 | G143: 10 (10.5) | H143: 15,53 2021.08.17 | I143: 15,53 2021.08.17 | J143: В | K143: 0 | L143: ТП | O143: 0 | P143: 0 | Q143: 0 | R143: 0 | S143: 0 | T143: 0 | U143: 0 | V143: 0 | W143: 0 | X143: 0 | Z143: ОЖ 17.08.2021 | AA143: 3.4.13 | AB143: 4.21 | AC143: 0
B144: X | C144: 135 | D144: АО "ЮРЭСК" п. Троица | E144: ВЛ | F144: ПС 110/10 Луговская ВЛ-10 Троица-2 | G144: 10 (10.5) | H144: 15,53 2021.08.17 | I144: 15,53 2021.08.17 | J144: В | K144: 0 | L144: ТП | O144: 0 | P144: 0 | Q144: 0 | R144: 0 | S144: 0 | T144: 0 | U144: 0 | V144: 0 | W144: 0 | X144: 0 | Z144: ОЖ 17.08.2021 | AA144: 3.4.13 | AB144: 4.21 | AC144: 0
B145: X | C145: 136 | D145: АО "ЮРЭСК" Ханты-Мансийский район п. Белогорье | E145: ВЛ | F145: ПС 110/10 Луговская ВЛ-10 Белогорье-1 | G145: 10 (10.5) | H145: 16,09 2021.08.17 | I145: 16,09 2021.08.17 | J145: В | K145: 0 | L145: ТП | O145: 0 | P145: 0 | Q145: 0 | R145: 0 | S145: 0 | T145: 0 | U145: 0 | V145: 0 | W145: 0 | X145: 0 | Z145: ОЖ 17.08.2021 | AA145: 3.4.14 | AB145: 4.21 | AC145: 1
B146: X | C146: 137 | D146: АО "ЮРЭСК" Ханты-Мансийский район п. Белогорье | E146: ВЛ | F146: ПС 110/10 Луговская ВЛ-10 Белогорье-2 | G146: 10 (10.5) | H146: 16,09 2021.08.17 | I146: 16,09 2021.08.17 | J146: В | K146: 0 | L146: ТП | O146: 0 | P146: 0 | Q146: 0 | R146: 0 | S146: 0 | T146: 0 | U146: 0 | V146: 0 | W146: 0 | X146: 0 | Z146: ОЖ 17.08.2021 | AA146: 3.4.14 | AB146: 4.21 | AC146: 1
B147: X | C147: 138 | D147: АО "ЮРЭСК" Ханты-Мансийский район | E147: ВЛ | F147: КПП 20 кВ №18-4040, ВЛЗ-20 Пырьях | G147: 20 (21) | H147: 18,10 2021.08.17 | I147: 19,09 2021.08.17 | J147: В | K147: 0.98 | L147: ТП 18-4015 | M147: 0 | N147: 0 | O147: 21 | P147: 0 | Q147: 0 | R147: 21 | S147: 0 | T147: 0 | U147: 2 | V147: 19 | W147: 0 | X147: 0 | Z147: ОЖ 17.08.2021 | AA147: 3.4.14 | AB147: 4.21 | AC147: 1
B148: X | C148: 139 | D148: АО "ЮРЭСК" Советский филиал | E148: ВЛ | F148: ПС 110/10 кВ "Хвойная" ВЛ-10 кВ ф."16 Микрорайон" | G148: 10 (10.5) | H148: 09,11 2021.08.19 | I148: 10,50 2021.08.19 | J148: В | K148: 1.65 | L148: ТП 9-3-3;ТП 6-2; ТП 6-5( 1ввод);ТП 6-11; ТП 6-12;ТП 9-5-4; ТП 9-5-8;ТП 9-6-7; ТП 9-6-1; ТП 9-6-8; ТП 9-6-9; ТП 9-7-1;ТП 9-7-3; ТП 9-7-4; ТП 9-11; ТП 9-16-1;ТП 9-16-2; ТП 9-16-3 | M148: КНС-1; | N148: Котельная (1 ввод)-1; Дет.Сад.(1 ввод) -1; Школа (1 ввод)-1. | O148: 226 | P148: 0 | Q148: 5 | R148: 221 | S148: 0 | T148: 0 | U148: 4 | V148: 222 | W148: 0 | X148: 0 | Z148: Акт №66/21 | AA148: 3.4.8.5 | AB148: 4.4 | AC148: 0
B149: X | C149: 140 | D149: АО "ЮРЭСК" Няганьский филиал | E149: ВЛ | F149: ПС 110 кВ Чульчам, ВЛ-10 ПНГС | G149: 10 (10.5) | H149: 09,10 2021.08.20 | I149: 09,51 2021.08.20 | J149: В | K149: 0.68 | L149: ТП5-1606 ТП5-1601 ТП5-2122 ТП5-1602 ТП5-1605 ТП5-1603 ТП ГСК Спутник ТП ГСК Автомобилист ТП Автодом ТП МТА ТП СГС ТП ГСК Югра ТП Тюм Гео Комп ТП ИРКОМ | O149: 14 | P149: 0 | Q149: 0 | R149: 14 | S149: 0 | T149: 0 | U149: 14 | V149: 0 | W149: 0 | X149: 159.952 | Z149: Акт №71/08/05 | AA149: 3.4.12.3 | AB149: 4.14 | AC149: 1
B150: X | C150: 141 | D150: АО "ЮРЭСК" Березовский филиал | E150: ВЛ | F150: КПП 20 кВ п.г.т. Березово, ВЛЗ 20 кВ Шайтанка | G150: 20 (21) | H150: 09,33 2021.08.20 | I150: 10,15 2021.08.20 | J150: В | K150: 0.7 | L150: ВЛ | M150: 0 | N150: 0 | O150: 78 | P150: 0 | Q150: 0 | R150: 78 | S150: 0 | T150: 0 | U150: 0 | V150: 78 | W150: 0 | X150: 358 | Z150: Акт №17/21 | AA150: 3.4.14 | AB150: 4.21 | AC150: 1
B151: X | C151: 142 | D151: АО "ЮРЭСК" Няганьский филиал | E151: ВЛ | F151: ПС 110/10 Чульчам, ВЛ-10 Новый | G151: 10 (10.5) | H151: 09,44 2021.08.20 | I151: 11,47 2021.08.20 | J151: В | K151: 2.05 | L151: ТП | O151: 0 | P151: 0 | Q151: 0 | R151: 0 | S151: 0 | T151: 0 | U151: 0 | V151: 0 | W151: 0 | X151: 35.292 | Z151: Акт №72/08/05 | AA151: 3.4.12.3 | AB151: 4.14 | AC151: 1
B152: X | C152: 143 | D152: АО "ЮРЭСК" Няганьский филиал | E152: ВЛ | F152: РП-15, ВЛ-10 РП-14-15 | G152: 10 (10.5) | H152: 09,44 2021.08.20 | I152: 14,36 2021.08.20 | J152: В | K152: 4.87 | L152: ТП5-601 1СШ, ТП5-602, ТП5-603, ТП5-606 1СШ, ТП5-607 1СШ, ТП5-501 1СШ, ТП5-502 1СШ, ТП5-510, ТП5-712 2СШ, ТП5-713 2СШ, ТП5-703, ТП5-704, ТП5-705, ТП5-706 1СШ | M152: 0 | N152: 0 | O152: 14 | P152: 0 | Q152: 0 | R152: 14 | S152: 0 | T152: 0 | U152: 14 | V152: 0 | W152: 0 | X152: 396 | Z152: Акт №72/08/05 | AA152: 3.4.12.3 | AB152: 4.14 | AC152: 1
B153: X | C153: 144 | D153: АО "ЮРЭСК" Ханты-Мансийский район | E153: ВЛ | F153: КПП-20/10 кВ №18-4041, ВЛ-10 Пырьях | G153: 10 (10.5) | H153: 15,29 2021.08.20 | I153: 16,00 2021.08.20 | J153: В | K153: 0.52 | L153: ТП 18-4015 | M153: 0 | N153: 0 | O153: 21 | P153: 0 | Q153: 0 | R153: 21 | S153: 0 | T153: 0 | U153: 2 | V153: 19 | W153: 0 | X153: 0 | Z153: ОЖ 20.08.2021 | AA153: 3.4.14 | AB153: 4.21 | AC153: 1
B154: X | C154: 145 | D154: АО "ЮРЭСК" Ханты-Мансийский район | E154: ВЛ | F154: КПП 20 кВ №18-4041, ВЛ-10 Пырьях-Кышик | G154: 10 (10.5) | H154: 15,29 2021.08.20 | I154: 16,00 2021.08.20 | J154: В | K154: 0.52 | L154: ТП 18-4015 | M154: 0 | N154: 0 | O154: 21 | P154: 0 | Q154: 0 | R154: 21 | S154: 0 | T154: 0 | U154: 2 | V154: 19 | W154: 0 | X154: 0 | Z154: ОЖ 20.08.2021 | AA154: 3.4.14 | AB154: 4.21 | AC154: 1
B155: X | C155: 146 | D155: АО "ЮРЭСК" | E155: ВЛ | F155: ПС 35/10 Цингалы, ВЛ-10 Лугофилинск | G155: 10 (10.5) | H155: 19,07 2021.08.21 | I155: 19,07 2021.08.21 | J155: В | K155: 0 | L155: ВЛ | O155: 0 | P155: 0 | Q155: 0 | R155: 0 | S155: 0 | T155: 0 | U155: 0 | V155: 0 | W155: 0 | X155: 0 | Z155: Акт №65 | AA155: 3.4.12.3 | AB155: 4.12 | AC155: 1
B156: X | C156: 147 | D156: АО "ЮРЭСК" Березовский филиал | E156: ВЛ | F156: ПС 110/10 кВ "Игрим", ВЛ-110 Игрим-Березово-2 | G156: 110 | H156: 07,13 2021.08.22 | I156: 07,13 2021.08.22 | J156: В | K156: 0 | L156: ВЛ | O156: 0 | P156: 0 | Q156: 0 | R156: 0 | S156: 0 | T156: 0 | U156: 0 | V156: 0 | W156: 0 | X156: 0 | Z156: Акт №66 | AA156: 3.4.12.3 | AB156: 4.21 | AC156: 1
B157: X | C157: 148 | D157: АО "ЮРЭСК" ЮТЭК-Кода | E157: ВЛ | F157: ПС 110 кВ Кода, ВЛ-10 Центр | G157: 10 (10.5) | H157: 12,57 2021.08.23 | I157: 13,29 2021.08.23 | J157: В | K157: 0.53 | L157: ТП | O157: 1 | P157: 0 | Q157: 0 | R157: 0 | S157: 0 | T157: 0 | U157: 0 | V157: 0 | W157: 1 | X157: 0 | Y157: АО "ЮТЭК-РС" | Z157: ОЖ 23.08.2021 | AA157: 3.4.14 | AB157: 4.21 | AC157: 1
B158: X | C158: 149 | D158: АО "ЮРЭСК" Березовский филиал | E158: ВЛ | F158: ПС 110/10 кВ "Игрим", ВЛ-110 Игрим-Березово-1 | G158: 110 | H158: 02,27 2021.08.26 | I158: 02,27 2021.08.26 | J158: В | K158: 0 | L158: ТП | O158: 1 | P158: 0 | Q158: 0 | R158: 1 | S158: 1 | T158: 0 | U158: 0 | V158: 0 | W158: 0 | X158: 0 | Z158: Акт №67 | AA158: 3.4.12.3 | AB158: 4.21 | AC158: 1
B159: X | C159: 150 | D159: АО "ЮРЭСК" Березовский филиал | E159: ВЛ | F159: ПС 110/10 кВ "Игрим", ВЛ-110 Игрим-Березово-2 | G159: 110 | H159: 02,27 2021.08.26 | I159: 02,27 2021.08.26 | J159: В | K159: 0 | L159: ТП | O159: 1 | P159: 0 | Q159: 0 | R159: 1 | S159: 1 | T159: 0 | U159: 0 | V159: 0 | W159: 0 | X159: 0 | Z159: Акт №67 | AA159: 3.4.12.3 | AB159: 4.21 | AC159: 1
B160: X | C160: 151 | D160: АО "ЮРЭСК" Березовский филиал | E160: ТП | F160: КТП-20/0,4 №11-1032, В-20 Ввод | G160: 20 (21) | H160: 03,31 2021.08.26 | I160: 03,45 2021.08.26 | J160: В | K160: 0.23 | L160: ТП | M160: 0 | N160: 0 | O160: 78 | P160: 0 | Q160: 0 | R160: 78 | S160: 0 | T160: 0 | U160: 0 | V160: 78 | W160: 0 | X160: 123 | Z160: Акт №18/21 | AA160: 3.4.14 | AB160: 4.21 | AC160: 1
B161: X | C161: 152 | D161: АО "ЮРЭСК" | E161: ВЛ | F161: ВЛ-110 кВ Югра-ГИБДД-1 | G161: 110 | H161: 08,07 2021.08.28 | I161: 08,07 2021.08.28 | J161: В | K161: 0 | L161: ВЛ | O161: 0 | P161: 0 | Q161: 0 | R161: 0 | S161: 0 | T161: 0 | U161: 0 | V161: 0 | W161: 0 | X161: 0 | Z161: ОЖ 28.08.2021 | AA161: 3.4.14 | AB161: 4.21 | AC161: 0
B162: X | C162: 153 | D162: АО "ЮРЭСК" Няганьский филиал | E162: ВЛ | F162: ПС 110 кВ Чульчам, ВЛ-10 Город-1 | G162: 10 (10.5) | H162: 13,41 2021.08.30 | I162: 16,20 2021.08.30 | J162: В | K162: 2.65 | L162: ТП "Строй Град", ТП "Феникс", ТП 5-114 | O162: 3 | P162: 0 | Q162: 0 | R162: 3 | S162: 0 | T162: 0 | U162: 3 | V162: 0 | W162: 0 | X162: 82.521 | Z162: Акт №75/08/05 | AA162: 3.4.8.5 | AB162: 4.4 | AC162: 1
B163: X | C163: 154 | D163: АО "ЮРЭСК" АО "ЮТЭК-Когалым" | E163: КЛ | F163: ЦРП-2-2, КЛ-10 яч. 12 | G163: 10 (10.5) | H163: 15,30 2021.08.30 | I163: 16,17 2021.08.30 | J163: В | K163: 0.78 | L163: ТП №2-22 Т-2, ТП №2-23 Т-2, ТП №2-21 Т-2, ТП №2-17 Т-2, ТП №2-15 Т-2 | N163: МАУ ДО "Дом детского творчества", МАОУ "Средняя школа №5, МАОУ "Средняя школа №6", МАДОУ "Золушка", МАДОУ "Березка", ФКУ "ЦХиСО УМВД России по ХМАО", МКУ «УЖКХ г. Когалыма» наружное освещение | O163: 59 | P163: 0 | Q163: 13 | R163: 46 | S163: 0 | T163: 0 | U163: 8 | V163: 51 | W163: 0 | X163: 0 | Z163: ОЖ 30.08.2021 | AA163: 3.4.14 | AB163: 4.21 | AC163: 1
B164: X | C164: 155 | D164: АО "ЮРЭСК" Кондинский филиал | E164: ВЛ | F164: ЗРУ-10 НПС "Конда-2", ВЛ-10 Катыш | G164: 10 (10.5) | H164: 18,10 2021.09.01 | I164: 21,10 2021.09.01 | J164: В | K164: 3 | L164: ТП 12-300, ТП 12-330, ТП 12-340 | M164: 0 | N164: 3 | O164: 3 | P164: 0 | Q164: 0 | R164: 3 | S164: 0 | T164: 0 | U164: 0 | V164: 3 | W164: 0 | X164: 0 | Z164: Оперативныйжурнал стр. 99 | AA164: 3.4.9.1 | AB164: 4.21 | AC164: 0
B165: X | C165: 156 | D165: АО "ЮРЭСК" Белоярский филиал | E165: КЛ | F165: ПЭС 10 кВ Казым, КЛ 10 кВ яч. 119 | G165: 10 (10.5) | H165: 19,00 2021.09.03 | I165: 19,30 2021.09.03 | J165: В | K165: 0.5 | L165: КЛ-10 кВ яч. №119, ЦРП №10-2 "ЦГК" ввод №1 | N165: КТП №1-"Котельная 1й оч.", КТП№1 "КОС", АО "ЮКЭК-Бел" | O165: 2 | P165: 0 | Q165: 2 | R165: 0 | S165: 0 | T165: 0 | U165: 2 | V165: 0 | W165: 0 | X165: 0 | Z165: Оперативный журнал стр.146 | AA165: 3.4.10 | AB165: 4.4 | AC165: 0
B166: X | C166: 157 | D166: АО "ЮРЭСК" г. Ханты-Мансийск | E166: ВЛ | F166: ПС 110кВ Авангард, ВЛ-10 ТП-2048-2 | G166: 10 (10.5) | H166: 11,48 2021.09.11 | I166: 12,48 2021.09.11 | J166: В | K166: 1 | L166: ТП | O166: 1 | P166: 0 | Q166: 0 | R166: 0 | S166: 0 | T166: 0 | U166: 0 | V166: 0 | W166: 1 | X166: 0 | Y166: ООО "Ханты-Мансийские городские электрические сети" | Z166: Оперативныйжурнал стр.385 | AA166: 3.4.9.1 | AB166: 4.13 | AC166: 0
B167: X | C167: 158 | D167: АО "ЮРЭСК" Кондинский филиал п. Болчары | E167: ВЛ | F167: ЗРУ-10 кВ НПС "Кедровое", ВЛ-10 кВ "Болчары", ВЛ-10 кВ "Кедровое" | G167: 10 (10.5) | H167: 02,26 2021.09.12 | I167: 06,20 2021.09.12 | J167: В | K167: 3.9 | L167: ТП 12-700, ТП 12-701, ТП 12-715, ТП 12-16, ТП 12-703, ТП 12-11, ТП 12-704, ТП 12-717, ТП 12-709, ТП 12-705, ТП 12-713, ТП 12-710, ТП 12-714, ТП 12 707, ТП 12-706, ТП "Пилетный завод", ТП 12-702, ТП 12-708, ТП "Сургут ДРСУ | M167: 0 | N167: 19 | O167: 19 | P167: 0 | Q167: 0 | R167: 19 | S167: 0 | T167: 0 | U167: 0 | V167: 19 | W167: 0 | X167: 0 | Z167: АКТ № 17 12.09.2021 | AA167: 3.4.8.2 | AB167: 4.13 | AC167: 0
B168: X | C168: 159 | D168: АО "ЮРЭСК" Няганьский филиал | E168: ВЛ | F168: ПС 110 кВ Сергино, ВЛ 10 кВ БПТОиК-1. | G168: 10 (10.5) | H168: 12,00 2021.09.12 | I168: 12,00 2021.09.12 | J168: В | K168: 0 | L168: ВЛ | M168: 0 | N168: 0 | O168: 0 | P168: 0 | Q168: 0 | R168: 0 | S168: 0 | T168: 0 | U168: 0 | V168: 0 | W168: 0 | X168: 0 | Z168: Оперативный журнал стр. 388 | AA168: 3.4.14 | AB168: 4.21 | AC168: 1
B169: X | C169: 160 | D169: АО "ЮРЭСК" Березовский филиал | E169: ВЛ | F169: ПС Пунга, ВЛ-6 Промзона | G169: 6 (6.3) | H169: 15,01 2021.09.14 | I169: 18,00 2021.09.14 | J169: В | K169: 2.98 | L169: ВЛ | M169: 0 | N169: 0 | O169: 255 | P169: 0 | Q169: 0 | R169: 255 | S169: 0 | T169: 0 | U169: 0 | V169: 255 | W169: 0 | X169: 1198 | Z169: Оперативныйжурнал стр. 9 | AA169: 3.4.12.5 | AB169: 4.4 | AC169: 1
B170: X | C170: 161 | D170: АО "ЮРЭСК" Кондинский филиал | E170: КВЛ | F170: ПС 110 кВ Юмас, КВЛ-10 Леуши | G170: 10 (10.5) | H170: 13,30 2021.09.15 | I170: 13,56 2021.09.15 | J170: В | K170: 0.43 | L170: ТП 12-207 1Т, ТП 12-208 2Т, ТП 12-209, ТП 12-210, ТП 12-211, ТП 12-212, ТП 12-213, ТП 12-231, ТП 12-233 1Т, ТП 12-235, ТП 12-77, ТП МТС, ТП 12-83 | M170: 0 | N170: ТП 12-207 1Т, ТП 12-208 2Т, ТП 12-233 1Т | O170: 13 | P170: 0 | Q170: 3 | R170: 10 | S170: 0 | T170: 0 | U170: 0 | V170: 13 | W170: 0 | X170: 0 | Z170: Акт №79/21 29.09.2021. | AA170: 3.4.9.3 | AB170: 4.12 | AC170: 0
B171: X | C171: 162 | D171: АО "ЮРЭСК" Кондинский филиал | E171: РП | F171: РП-12-3, ВЛЗ-10 Первомайский | G171: 10 (10.5) | H171: 13,30 2021.09.15 | I171: 14,07 2021.09.15 | J171: В | K171: 0.62 | L171: ТП №12-6, ТП №12-49,ТП №12-7, ТП №12-8, ТП №12-27 | M171: 0 | N171: 0 | O171: 5 | P171: 0 | Q171: 0 | R171: 5 | S171: 0 | T171: 0 | U171: 0 | V171: 5 | W171: 0 | X171: 0 | Z171: АКТ № 18 15.09.2021 | AA171: 3.4.2 | AB171: 4.10 | AC171: 1
B172: X | C172: 163 | D172: АО "ЮРЭСК" Березовский филиал | E172: ВЛ | F172: РП-11-2113, ВЛ-6 кВ Старый поселок | G172: 6 (6.3) | H172: 18,10 2021.09.16 | I172: 18,55 2021.09.16 | J172: В | K172: 0.75 | L172: ВЛ | M172: 0 | N172: 0 | O172: 183 | P172: 0 | Q172: 0 | R172: 183 | S172: 0 | T172: 0 | U172: 0 | V172: 183 | W172: 0 | X172: 245 | Z172: Оперативныйжурнал стр. 21 | AA172: 3.4.14 | AB172: 4.21 | AC172: 1
B173: X | C173: 164 | D173: АО "ЮРЭСК" Белоярский филиал | E173: КВЛ | F173: ПС 110 кВ Белоярская, КВЛ 6 кВ ЮТЭК-14 | G173: 6 (6.3) | H173: 11,39 2021.09.17 | I173: 15,34 2021.09.17 | J173: В | K173: 3.92 | L173: ВЛ 6 кВ ЛЭП №14 | O173: 0 | P173: 0 | Q173: 0 | R173: 0 | S173: 0 | T173: 0 | U173: 0 | V173: 0 | W173: 0 | X173: 0 | Z173: Оперативный журнал стр.195 | AA173: 3.4.13.3 | AB173: 4.12 | AC173: 1
B174: X | C174: 165 | D174: АО "ЮРЭСК" Советский филиал | E174: ВЛ | F174: ПС 110/10 кВ "Хвойная" ВЛ-10 кВ ф."РП 4-2" | G174: 10 (10.5) | H174: 22,06 2021.09.20 | I174: 22,45 2021.09.20 | J174: В | K174: 0.65 | L174: ТП 9-1-1,ТП 9-1-4,ТП 9-1-6,ТП 9-1-7,ТП 9-1-9,ТП 9-1-10 | M174: 0 | N174: Котельная-3 | O174: 40 | P174: 0 | Q174: 3 | R174: 37 | S174: 0 | T174: 0 | U174: 0 | V174: 40 | W174: 0 | X174: 0 | Z174: Акт №77/21 20.09.2021. | AA174: 3.4.8 | AB174: 4.13 | AC174: 0
B175: X | C175: 166 | D175: АО "ЮРЭСК" Березовский филиал | E175: ВЛ | F175: ВЛ-20кВ Пугоры | G175: 20 (21) | H175: 13,43 2021.09.25 | I175: 15,00 2021.09.26 | J175: В | K175: 25.28 | L175: ВЛ | M175: 0 | N175: 0 | O175: 303 | P175: 0 | Q175: 0 | R175: 303 | S175: 0 | T175: 0 | U175: 0 | V175: 303 | W175: 0 | X175: 4670 | Z175: Оперативныйжурнал стр. 63 | AA175: 3.4.10 | AB175: 4.4 | AC175: 0
B176: X | C176: 167 | D176: АО "ЮРЭСК" Березовский филиал | E176: ВЛ | F176: КПП 6/20 Игрим №11-2114, ВЛ-20 Н.Нарыкары | G176: 20 (21) | H176: 16,30 2021.09.26 | I176: 16,45 2021.09.26 | J176: В | K176: 0.25 | L176: ВЛ | M176: 0 | N176: 0 | O176: 240 | P176: 0 | Q176: 0 | R176: 240 | S176: 0 | T176: 0 | U176: 0 | V176: 240 | W176: 0 | X176: 36 | Z176: Оперативныйжурнал стр. 66 | AA176: 3.4.14 | AB176: 4.21 | AC176: 1
B177: X | C177: 168 | D177: АО "ЮРЭСК" Советский филиал | E177: ВЛ | F177: ПС 110/10 кВ "Соболиная" ВЛ-10 кВ ф."Котельная-1" | G177: 10 (10.5) | H177: 11,15 2021.09.29 | I177: 13,37 2021.09.29 | J177: В | K177: 2.367 | L177: ТП 16-014;ТП 16-191;ТП 16-084П;ТП 16-158П;ТП 16-172П;ТП 16-183П;ТП 16-149П;ТП 16-013;ТП 16-157П;ТП 16-162П;ТП 16-016П | M177: 0 | N177: Скважины, КОС, очистные | O177: 18 | P177: 0 | Q177: 7 | R177: 11 | S177: 0 | T177: 0 | U177: 4 | V177: 14 | W177: 0 | X177: 0 | Z177: Акт №79/21 29.09.2021. | AA177: 3.4.9.3 | AB177: 4.12 | AC177: 0
B178: X | C178: 169 | D178: АО "ЮРЭСК" Советский филиал | E178: ВЛ | F178: ПС Советская, В-10 МК-156 | G178: 10 (10.5) | H178: 14,28 2021.10.07 | I178: 16,05 2021.10.07 | J178: В | K178: 1.617 | L178: ТП 16-087, ТП 16-088, ТП 16-089, ТП 16-090, ТП 16-091, ТП 16-092, ТП 16-093, ТП 16-094, ТП 16-095, ТП 16-096, ТП 16-097, ТП 16-098, ТП 16-099, ТП 16-103, ТП 16-131, ТП 16-132, ТП 16-132Н, ТП 16-142, ТП 16-159, ТП 16-173, ТП 16-174, ТП 16-185, ТП 16-184, ТП 16-190 | O178: 0 | P178: 0 | Q178: 0 | R178: 0 | S178: 0 | T178: 0 | U178: 0 | V178: 0 | W178: 0 | X178: 0 | Z178: Акт № 82/21 07.10.2021 | AA178: 3.4.14 | AB178: 4.16 | AC178: 1
B179: X | C179: 170 | D179: АО "ЮРЭСК" Няганский филиал | E179: КВЛ | F179: КВЛ-10 ф.РП-15-14 | G179: 10 (10.5) | H179: 08,19 2021.10.08 | I179: 10,29 2021.10.08 | J179: В | K179: 2.1667 | L179: ТП 5 -2040, ТП"Президент", ТП 5-2012, ТП Каимов, ТП 5-2014,ТП"Римера сервис", ТП 5-2017, ТП ЮВиС, ТП Ойл памп сервис, ТП 5-2004 Т-2, ТП Роснефть(20-07) | M179: 0 | N179: 1 | O179: 12 | P179: 0 | Q179: 1 | R179: 11 | S179: 0 | T179: 0 | U179: 12 | V179: 0 | W179: 0 | X179: 504.468 | Z179: Акт № 77/10/21 08.10.2021 | AA179: 3.4.14 | AB179: 4.14 | AC179: 1
B180: X | C180: 171 | D180: АО "ЮРЭСК" Кондинский филиал | E180: ВЛ | F180: ЗРУ-10 НПС "Конда-2", ВЛ-10 Катыш | G180: 10 (10.5) | H180: 08,20 2021.10.17 | I180: 11,18 2021.10.17 | J180: В | K180: 2.97 | L180: ТП 12-300, ТП 12-330, ТП 12-340 | O180: 3 | P180: 0 | Q180: 0 | R180: 3 | S180: 0 | T180: 0 | U180: 0 | V180: 3 | W180: 0 | X180: 0 | Z180: ОЖ от 17.10.21 | AA180: 3.4.14 | AB180: 4.21 | AC180: 1
B181: X | C181: 172 | D181: АО "ЮРЭСК" Ханты-Мансийский район | E181: ВЛ | F181: ПС 35/10 Цингалы, ВЛ-10 Лугофилинск | G181: 10 (10.5) | H181: 08,44 2021.10.25 | I181: 09,38 2021.10.25 | J181: В | K181: 0.9 | L181: ТП | O181: 1 | P181: 0 | Q181: 0 | R181: 0 | S181: 0 | T181: 0 | U181: 0 | V181: 0 | W181: 1 | X181: 0 | Y181: АО "ЮТЭК-РС" | Z181: ОЖ от 25.10.21 | AA181: 3.4.14 | AB181: 4.21 | AC181: 1
B182: X | C182: 173 | D182: АО "ЮРЭСК" Советский филиал г. Югорск | E182: КЛ | F182: РП-1, КЛ-10 кВ ф.2 ТП-911-2 | G182: 10 (10.5) | H182: 05,45 2021.10.28 | I182: 14,12 2021.10.28 | J182: В | K182: 8.45 | L182: ТП 9-11-2 ТП 9-11-5 ТП 11-14 | N182: Котельная | O182: 7 | P182: 0 | Q182: 2 | R182: 5 | S182: 0 | T182: 0 | U182: 0 | V182: 7 | W182: 0 | X182: 0 | Z182: Акт № 99/21 28.10.2021 | AA182: 3.4.14 | AB182: 4.12 | AC182: 1
B183: X | C183: 174 | D183: АО "ЮРЭСК" Няганский филиал | E183: ВЛ | F183: ПС 110/10 Сергино, ВЛ-10 Поселок-2 | G183: 10 (10.5) | H183: 09,46 2021.10.29 | I183: 10,30 2021.10.29 | J183: В | K183: 0.73 | L183: ТП | O183: 1 | P183: 0 | Q183: 0 | R183: 0 | S183: 0 | T183: 0 | U183: 0 | V183: 0 | W183: 1 | X183: 0 | Y183: АО "ЮТЭК-РС" | Z183: ОЖ от 29.10.21 | AA183: 3.4.14 | AB183: 4.21 | AC183: 1
B184: X | C184: 175 | D184: АО "ЮРЭСК" Ханты-Мансийский район | E184: ВЛ | F184: ПС 35/10 Цингалы, ВЛ-10 Лугофилинск | G184: 10 (10.5) | H184: 10,21 2021.11.08 | I184: 10,30 2021.11.08 | J184: В | K184: 0.15 | L184: ТП | O184: 5 | P184: 0 | Q184: 0 | R184: 5 | S184: 0 | T184: 0 | U184: 0 | V184: 5 | W184: 0 | X184: 0 | Z184: ОЖ от 08.11.2021 | AA184: 3.4.14 | AB184: 4.21 | AC184: 1
B185: X | C185: 176 | D185: АО "ЮРЭСК" Няганский филиал | E185: КЛ | F185: ПС 110/10 Чульчам, КЛ-10 РП-3-2 | G185: 10 (10.5) | H185: 08,31 2021.11.18 | I185: 09,19 2021.11.18 | J185: В | K185: 0.8 | L185: РП 5-3 Т-2, ТП 5-303 Т2, ТП 5-304 Т2, ТП 5-305 Т2, 5-306 Т2, ТП 5-713 Т-1, ТП 5-712 Т-1, ТП 5-702, ТП 5-701, ТП 5-710, ТП 5-711, ТП 5-5 Т-1, ТП 5-01 Т-2, ТП 5-502 Т-2, ТП 5-507, ТП 5-508, ТП 5-509, ТП 5-601 Т-2, ТП 5-604, ТП 5-605, ТП 5-606 Т-2, ТП 5-607 Т-2, ТП 5-406 Т-2, ТП 5-407 Т-2, ТП 5-408 Т-2, ТП 5-409 Т-2, ТП Осадчук | O185: 11 | P185: 0 | Q185: 0 | R185: 11 | S185: 0 | T185: 0 | U185: 11 | V185: 0 | W185: 0 | X185: 620.2 | Z185: Акт №78/11/5 18.11.2021 | AA185: 3.4.8.1 | AB185: 4.4 | AC185: 1
B186: X | C186: 177 | D186: АО "ЮРЭСК" Няганьский филиал | E186: ВЛ | F186: РП 5-20, ВЛ-10 Промбаза | G186: 10 (10.5) | H186: 01,25 2021.11.19 | I186: 06,23 2021.11.19 | J186: В | K186: 4.967 | L186: ТП 17-12 Т-2, ТП 5-2120, ТП 5-2112,ТП 5-2101, ТП 5-2113, ТП 5-2103 Т-2,ТП 5-2121 Т-2,ТП 20-28(Тупик),ТП АЗС ННП,ТП 5-1730,ТП АЗС Эллиа,ТП УТТ, ТП РТЦ, ГСК Заречный | O186: 7 | P186: 0 | Q186: 0 | R186: 7 | S186: 0 | T186: 0 | U186: 7 | V186: 0 | W186: 0 | X186: 1546.62 | Z186: Акт №79/11/5 19.11.2021 | AA186: 3.4.8.5 | AB186: 4.4 | AC186: 1
B187: X | C187: 178 | D187: АО "ЮРЭСК" Березовский филиал | E187: ВЛ | F187: ПС 110 кВ "Игрим", ВЛ-110 Игрим-Березово-1 | G187: 110 | H187: 17,02 2021.11.21 | I187: 19,25 2021.11.21 | J187: В | K187: 2.38 | L187: ТП | O187: 0 | P187: 0 | Q187: 0 | R187: 0 | S187: 0 | T187: 0 | U187: 0 | V187: 0 | W187: 0 | X187: 0 | Z187: ОЖ от 21.11.2021 | AA187: 3.4.14 | AB187: 4.21 | AC187: 1
B188: X | C188: 179 | D188: АО "ЮРЭСК" Советский филиал | E188: ВЛ | F188: ПС 110 кВ Мансийская, ВЛ-10 Поселок-1 | G188: 10 (10.5) | H188: 02,39 2021.11.22 | I188: 03,51 2021.11.22 | J188: В | K188: 1.2 | L188: ТП 9-17-9,ТП 9-17-10,ТП 9-17-11,ТП 17-29,ТП 9-17-32,ТП 9-17-48,ТП 9-17-51 | N188: Котельная-1, ВОС, школа-1, дет. сад-1 | O188: 8 | P188: 1 | Q188: 3 | R188: 4 | S188: 0 | T188: 0 | U188: 1 | V188: 7 | W188: 0 | X188: 0 | Z188: Акт №102/21 22.11.2021 | AA188: 3.4.12.5 | AB188: 4.17 | AC188: 1
B189: X | C189: 180 | D189: АО "ЮРЭСК" АО "ЮТЭК-Когалым" | E189: КЛ | F189: ЦРП-2-1, КЛ-10 яч. 13 | G189: 10 (10.5) | H189: 23,40 2021.11.29 | I189: 00,12 2021.11.30 | J189: В | K189: 0.53 | L189: ТП №2-2 Т-2, ТП №2-6 Т-2, ТП №2-5 Т-2, ТП №2-4 Т-2, ТП №2-10 Т-2, ТП №2-56 Т-2 | N189: МЛПУ "Когалымская городская больница", ФФБУЗ "Центр гигиены и эпидемиологии в ХМАО-Югре", МАУ "Многофинкциональный центр предоставления государсветтых и муниципальных услуг", МКУ «УЖКХ г. Когалыма» наружное освещение, ООО "Горводоканал" | O189: 10 | P189: 2 | Q189: 3 | R189: 5 | S189: 0 | T189: 0 | U189: 7 | V189: 3 | W189: 0 | X189: 0 | Z189: Акт №09/21 29.11.2021 | AA189: 3.4.14 | AB189: 4.12 | AC189: 1
B190: X | C190: 181 | D190: АО "ЮРЭСК" Советский филиал г. Югорск | E190: ВЛ | F190: ПС 110/10 Геологическая, ВЛ-10 Лесозавод | G190: 10 (10.5) | H190: 19,26 2021.11.30 | I190: 21,12 2021.11.30 | J190: В | K190: 1.767 | L190: ТП 9-14-16;ТП 9-17-4;ТП 9-17-40;ТП 9-17-7;ТП 9-17-8;ТП 9-17-28;ТП 9-17-3;ТП 9-17-5;ТП 9-17-12;ТП 9-17-42 | M190: КНС-1 | N190: ВОС-1, | O190: 12 | P190: 1 | Q190: 0 | R190: 11 | S190: 0 | T190: 0 | U190: 0 | V190: 12 | W190: 0 | X190: 0 | Z190: Акт №114/21 30.11.2021 | AA190: 3.4.12.1 | AB190: 4.17 | AC190: 1
B191: X | C191: 182 | D191: АО "ЮРЭСК" Советский филиал | E191: ВЛ | F191: ПС 110/10 кВ "Алябьево" В-10 кВ ф."Пионерский-1" | G191: 10 (10.5) | H191: 20,25 2021.12.03 | I191: 20,53 2021.12.03 | J191: В | K191: 0.467 | L191: ТП КНС-2, Котельная-3, ВОС-1 | M191: Скважины-1, Дет. сад-1; Больница-1 | O191: 16 | P191: 6 | Q191: 10 | R191: 0 | S191: 0 | T191: 2 | U191: 14 | V191: 0 | W191: 0 | X191: 0 | Z191: Акт №116/21 03.12.2021 | AA191: 3.4.9.1 | AB191: 4.21 | AC191: 1
B192: X | C192: 183 | D192: АО "ЮРЭСК" Советский филиал | E192: ВЛ | F192: ПС 110/10 кВ "Алябьево" В-10 кВ ф."Пионерский-2" | G192: 10 (10.5) | H192: 20,32 2021.12.03 | I192: 22,01 2021.12.03 | J192: В | K192: 1.48 | L192: ТП16-207, ТП16-209, ТП 16-211, ТП 16-212, ТП16-213, ТП16-222, ТП16-224. ТП 16-206, ТП16-214, ТП16-216, ТП16-223 | M192: Котельная-1, КНС-1, Школа-1 | N192: Дет. сад-1, Больница-1 | O192: 18 | P192: 2 | Q192: 6 | R192: 10 | S192: 0 | T192: 0 | U192: 4 | V192: 14 | W192: 0 | X192: 0 | Z192: Акт №115/21 03.12.2021 | AA192: 3.4.14 | AB192: 4.12 | AC192: 1
B193: X | C193: 184 | D193: АО "ЮРЭСК" Няганский филиал | E193: КЛ | F193: РП 5-8, ф. РП-2-2 | G193: 10 (10.5) | H193: 05,55 2021.12.04 | I193: 06,53 2021.12.04 | J193: В | K193: 0.97 | L193: РП-2-2 С.Ш.-10, ТП 5-202 Т-2, ТП 5-203 Т-2, ГСК Центральный, ТП 2-04 Т-2, ТП 5-205 Т-2, ТП 5-206 Т-2, ТП 5-401 Т-2, ТП 5-402 Т-2, ТП 5-403 Т-2, ТП 5-404 Т-2, ТП 5-405 Т-2 | M193: 0 | N193: 0 | O193: 11 | P193: 0 | Q193: 0 | R193: 11 | S193: 0 | T193: 0 | U193: 11 | V193: 0 | W193: 0 | X193: 847 | Z193: Акт №80/12/5 04.12.2021 | AA193: 3.4.14 | AB193: 4.21 | AC193: 1
B194: X | C194: 185 | D194: АО "ЮРЭСК" Няганьский филиал | E194: КЛ | F194: РП-10 кВ "5-7", яч.8 ф."6-06-2" | G194: 10 (10.5) | H194: 22,34 2021.12.07 | I194: 23,05 2021.12.07 | J194: В | K194: 0.52 | L194: ТП 5-606 Т-2, ТП 5-607 Т-2 | M194: 0 | N194: 0 | O194: 2 | P194: 0 | Q194: 0 | R194: 2 | S194: 0 | T194: 0 | U194: 2 | V194: 0 | W194: 0 | X194: 103 | Z194: Акт №81/12/5 07.12.2021 | AA194: 3.4.14 | AB194: 4.21 | AC194: 1
B195: X | C195: 186 | D195: АО "ЮРЭСК" Кондинский филиал | E195: ВЛ | F195: ПС 110/35/10 Юмас, ВЛ-35 Юмас-Ямки. | G195: 35 | H195: 14,15 2021.12.17 | I195: 14,46 2021.12.17 | J195: В | K195: 0.52 | L195: ВЛ | M195: 0 | N195: 0 | O195: 1 | P195: 0 | Q195: 0 | R195: 0 | S195: 0 | T195: 0 | U195: 0 | V195: 0 | W195: 1 | X195: 0 | Y195: АО "ЮТЭК-РС" | Z195: О/Ж | AA195: 3.4.12.2 | AB195: 4.17 | AC195: 0
B196: X | C196: 187 | D196: АО "ЮРЭСК" АО "ЮТЭК-Когалым" | E196: КЛ | F196: ПС 110кВ Инга, КЛ-10 ф.10 | G196: 10 (10.5) | H196: 13,21 2021.12.21 | I196: 14,31 2021.12.21 | J196: В | K196: 1.17 | L196: ЦРП№2-1, ТП№2-3,ТП№2-33,ТП№2-30,ТП№2-39, ТП№2-7,ТП№2-8,ТП№2-12,ТП№2-2,ТП№2-6, ТП№2-5,ТП№2-4,ТП№2-10,ТП№2-56, ТП№2-1,ТП№2-37,ТП№2-38,ТП№2-57,ТП№2-40 | M196: 0 | N196: 0 | O196: 19 | P196: 4 | Q196: 6 | R196: 9 | S196: 0 | T196: 0 | U196: 10 | V196: 9 | W196: 0 | X196: 0 | Z196: Акт №10/21 21.12.2021 | AA196: 3.4.14 | AB196: 4.12 | AC196: 1
B197: X | C197: 188 | D197: АО "ЮРЭСК" Советский филиал | E197: ВЛ | F197: РП-10 кВ "150" ВЛ-10 кВ "ПМК" | G197: 10 (10.5) | H197: 17,41 2021.12.24 | I197: 19,26 2021.12.24 | J197: В | K197: 1.75 | L197: ТП 16-042, ТП 16-044, ТП 16-046, ТП 16-067 | M197: 0 | N197: дет.сад-1, | O197: 10 | P197: 0 | Q197: 1 | R197: 9 | S197: 0 | T197: 0 | U197: 0 | V197: 10 | W197: 0 | X197: 0 | Z197: Акт 138/21 24.12.2021 | AA197: 3.4.8.2 | AB197: 4.4 | AC197: 1
C198: Добавить строку
B199: X

Sheet Форма 8.3.
B2: Форма 8.3. Расчет индикативного показателя уровня надежности оказываемых услуг для территориальных сетевых организаций и организаций по управлению единой национальной (общероссийской) электрической сетью
B4: № п/п | C4: Наименование составляющей показателя | D4: Метод определения
B5: 1 | C5: Максимальное за расчетный период регулирования число точек поставки сетевой организации, шт., в том числе в разбивке по уровням напряжения: | D5: 112292 | E5: В соответствии с заключенными договорами по передаче электрической энергии
B6: 1.1 | C6: ВН (110 кВ и выше), шт. | D6: 125 | E6: В соответствии с заключенными договорами по передаче электрической энергии
B7: 1.2 | C7: СН-1 (35 кВ), шт. | D7: 43 | E7: В соответствии с заключенными договорами по передаче электрической энергии
B8: 1.3 | C8: СН-2 (6 - 20 кВ), шт. | D8: 6358 | E8: В соответствии с заключенными договорами по передаче электрической энергии
B9: 1.4 | C9: НН (до 1 кВ), шт. | D9: 105766 | E9: В соответствии с заключенными договорами по передаче электрической энергии
B10: 2 | C10: Средняя продолжительность прекращения передачи электрической энергии на точку поставки (Пsaidi), час. | D10: =IF(ISERR(SUMPRODUCT((Столбец9*Столбец13)*(Столбец8="В")*(Столбец27=1))/D$5),0,SUMPRODUCT((Столбец9*Столбец13)*(Столбец8="В")*(Столбец27=1))/D$5) -> 0.06843757703 | E10: сумма произведений по столбцу 9 и столбцу 13 Формы 8.1, деленная на значение пункта 1 Формы 8.3 ((∑ столбец 9 * столбец 13) / пункт 1 Формы 8.3) При этом учитываются только те события, по которым значения в столбце 8 равны "В", а в столбце 27 равны 1
B11: 3 | C11: Средняя частота прекращений передачи электрической энергии на точку поставки (Пsaifi), шт. | D11: =IF(ISERR(SUMIFS(Столбец13,Столбец8,"В",Столбец27,1)/D$5),0,SUMIFS(Столбец13,Столбец8,"В",Столбец27,1)/D$5) -> 0.04588038329 | E11: сумма по столбцу 13 Формы 8.1 и деленная на значение пункта 1 Формы 8.3 (∑ столбец 13 Формы 8.1 / пункт 1 Формы 8.3) При этом учитываются только те события, по которым значения в столбце 8 равны "В", а в столбце 27 равны 1
B12: 4 | C12: Средняя продолжительность прекращения передачи электрической энергии при проведении ремонтных работ (Пsaidi), час. | D12: =IF(ISERR(SUMPRODUCT((Столбец9*Столбец13)*(Столбец8="П"))/D$5),0,SUMPRODUCT((Столбец9*Столбец13)*(Столбец8="П"))/D$5) -> 0 | E12: сумма произведений по столбцу 9 и столбцу 13 Формы 8.1, деленная на значение пункта 1 Формы 8.3 ((∑ столбец 9 * столбец 13) / пункт 1 Формы 8.3) При этом учитываются только те события, по которым значения в столбце 8 равны "П"
B13: 5 | C13: Средняя частота прекращений передачи электрической энергии при проведении ремонтных работ (Пsaifi), шт. | D13: =IF(ISERR(SUMIFS(Столбец13,Столбец8,"П")/D$5),0,SUMIFS(Столбец13,Столбец8,"П")/D$5) -> 0 | E13: сумма по столбцу 13 Формы 8.1 и деленная на значение пункта 1 Формы 8.3 (∑ столбец 13 Формы 8.1 / пункт 1 Формы 8.3) При этом учитываются только те события, по которым значения в столбце 8 равны "П"

Sheet TEHSHEET (hidden)
S1: Показатель средней продолжительности прекращения передачи электрической энергии на точку поставки | T1: Показатель средней частоты прекращения передачи электрической энергии на точку поставки | U1: Показатель уровня качества оказываемых услуг
P2: 1 | Q2: Филиал ОАО "РЖД" Трансэнерго Свердловская дирекция по энергообеспечению (по сетям Ишимской, Егоршинской, Серовской, Тюменской дистанций электроснабжения) | R2: 2020 | S2: 0.5051 | T2: 0.2038 | U2: 1.0253
Q3: Филиал ОАО "РЖД" Трансэнерго Свердловская дирекция по энергообеспечению (по сетям Ишимской, Егоршинской, Серовской, Тюменской дистанций электроснабжения) | R3: 2021 | S3: 0.4975 | T3: 0.2008 | U3: 1.0099
F4: техпрес | Q4: Филиал ОАО "РЖД" Трансэнерго Свердловская дирекция по энергообеспечению (по сетям Ишимской, Егоршинской, Серовской, Тюменской дистанций электроснабжения) | R4: 2022 | S4: 0.4901 | T4: 0.1977 | U4: 1.0000
Q5: Филиал ОАО "РЖД" Трансэнерго Свердловская дирекция по энергообеспечению (по сетям Ишимской, Егоршинской, Серовской, Тюменской дистанций электроснабжения) | R5: 2023 | S5: 0.4827 | T5: 0.1948 | U5: 1.0000
Q6: Филиал ОАО "РЖД" Трансэнерго Свердловская дирекция по энергообеспечению (по сетям Ишимской, Егоршинской, Серовской, Тюменской дистанций электроснабжения) | R6: 2024 | S6: 0.4755 | T6: 0.1919 | U6: 1.0000
P7: 2 | Q7: Филиал "Уральский" АО "Оборонэнерго" | R7: 2020 | S7: 4.4022 | T7: 0.4281 | U7: 1.0000
Q8: Филиал "Уральский" АО "Оборонэнерго" | R8: 2021 | S8: 4.3362 | T8: 0.4216 | U8: 1.0000
Q9: Филиал "Уральский" АО "Оборонэнерго" | R9: 2022 | S9: 4.2711 | T9: 0.4153 | U9: 1.0000
Q10: Филиал "Уральский" АО "Оборонэнерго" | R10: 2023 | S10: 4.2071 | T10: 0.4091 | U10: 1.0000
Q11: Филиал "Уральский" АО "Оборонэнерго" | R11: 2024 | S11: 4.1439 | T11: 0.4029 | U11: 1.0000
P12: 3 | Q12: ООО "ДСК-Энерго" | R12: 2020 | S12: 0.0917 | T12: 0.1637 | U12: 1.0000
Q13: ООО "ДСК-Энерго" | R13: 2021 | S13: 0.0903 | T13: 0.1612 | U13: 1.0000
Q14: ООО "ДСК-Энерго" | R14: 2022 | S14: 0.0889 | T14: 0.1588 | U14: 1.0000
Q15: ООО "ДСК-Энерго" | R15: 2023 | S15: 0.0876 | T15: 0.1564 | U15: 1.0000
Q16: ООО "ДСК-Энерго" | R16: 2024 | S16: 0.0863 | T16: 0.1541 | U16: 1.0000
P17: 4 | Q17: ООО "РемЭнергоСтройСервис" | R17: 2020 | S17: 0.3352 | T17: 0.0720 | U17: 1.0000
Q18: ООО "РемЭнергоСтройСервис" | R18: 2021 | S18: 0.3301 | T18: 0.0709 | U18: 1.0000
Q19: ООО "РемЭнергоСтройСервис" | R19: 2022 | S19: 0.3252 | T19: 0.0699 | U19: 1.0000
Q20: ООО "РемЭнергоСтройСервис" | R20: 2023 | S20: 0.3203 | T20: 0.0688 | U20: 1.0000
Q21: ООО "РемЭнергоСтройСервис" | R21: 2024 | S21: 0.3155 | T21: 0.0678 | U21: 1.0000
P22: 5 | Q22: ООО "Тобольскпромэнергосеть" | R22: 2020 | S22: 0.3150 | T22: 0.1493 | U22: 1.0000
Q23: ООО "Тобольскпромэнергосеть" | R23: 2021 | S23: 0.3103 | T23: 0.1470 | U23: 1.0000
Q24: ООО "Тобольскпромэнергосеть" | R24: 2022 | S24: 0.3057 | T24: 0.1448 | U24: 1.0000
Q25: ООО "Тобольскпромэнергосеть" | R25: 2023 | S25: 0.3011 | T25: 0.1427 | U25: 1.0000
Q26: ООО "Тобольскпромэнергосеть" | R26: 2024 | S26: 0.2966 | T26: 0.1405 | U26: 1.0000
P27: 6 | Q27: ООО "Транзит-Электро-Тюмень" | R27: 2020 | S27: 0.0564 | T27: 0.0183 | U27: 1.0000
Q28: ООО "Транзит-Электро-Тюмень" | R28: 2021 | S28: 0.0555 | T28: 0.0180 | U28: 1.0000
Q29: ООО "Транзит-Электро-Тюмень" | R29: 2022 | S29: 0.0547 | T29: 0.0177 | U29: 1.0000
Q30: ООО "Транзит-Электро-Тюмень" | R30: 2023 | S30: 0.0539 | T30: 0.0175 | U30: 1.0000
Q31: ООО "Транзит-Электро-Тюмень" | R31: 2024 | S31: 0.0530 | T31: 0.0172 | U31: 1.0000
P32: 7 | Q32: ООО "Тюменская электросетевая компания" | R32: 2020 | S32: 0.1086 | T32: 0.0547 | U32: 1.0000
Q33: ООО "Тюменская электросетевая компания" | R33: 2021 | S33: 0.1069 | T33: 0.0539 | U33: 1.0000
Q34: ООО "Тюменская электросетевая компания" | R34: 2022 | S34: 0.1053 | T34: 0.0531 | U34: 1.0000
Q35: ООО "Тюменская электросетевая компания" | R35: 2023 | S35: 0.1037 | T35: 0.0523 | U35: 1.0000
Q36: ООО "Тюменская электросетевая компания" | R36: 2024 | S36: 0.1022 | T36: 0.0515 | U36: 1.0000
C37: ТСО | D37: Филиал ОАО "РЖД" Трансэнерго Свердловская дирекция по энергообеспечению (по сетям Ишимской, Егоршинской, Серовской, Тюменской дистанций электроснабжения) | E37: период | F37: 2021 | P37: 8 | Q37: ООО "Элтранс" | R37: 2020 | S37: 0.0000 | T37: 0.0000 | U37: 1.0000
Q38: ООО "Элтранс" | R38: 2021 | S38: 0.0000 | T38: 0.0000 | U38: 1.0000
Q39: ООО "Элтранс" | R39: 2022 | S39: 0.0000 | T39: 0.0000 | U39: 1.0000
C40: продолжительность план | D40: факт | Q40: ООО "Элтранс" | R40: 2023 | S40: 0.0000 | T40: 0.0000 | U40: 1.0000
C41: =SUMIFS(R2:R161,S2:S161,D37,Q2:Q161,F37) -> 0 | Q41: ООО "Элтранс" | R41: 2024 | S41: 0.0000 | T41: 0.0000 | U41: 1.0000
P42: 9 | Q42: ООО "Дорстрой" | R42: 2020 | S42: 0.0000 | T42: 0.0000 | U42: 1.0000
C43: частота план | D43: факт | Q43: ООО "Дорстрой" | R43: 2021 | S43: 0.0000 | T43: 0.0000 | U43: 1.0000
C44: =SUMIFS(R2:R161,T2:T161,D37,Q2:Q161,F37) -> 0 | Q44: ООО "Дорстрой" | R44: 2022 | S44: 0.0000 | T44: 0.0000 | U44: 1.0000
Q45: ООО "Дорстрой" | R45: 2023 | S45: 0.0000 | T45: 0.0000 | U45: 1.0000
Q46: ООО "Дорстрой" | R46: 2024 | S46: 0.0000 | T46: 0.0000 | U46: 1.0000
P47: 10 | Q47: ООО "Альтера" | R47: 2020 | S47: 0.0520 | T47: 0.0693 | U47: 1.0000
Q48: ООО "Альтера" | R48: 2021 | S48: 0.0512 | T48: 0.0683 | U48: 1.0000
Q49: ООО "Альтера" | R49: 2022 | S49: 0.0504 | T49: 0.0673 | U49: 1.0000
Q50: ООО "Альтера" | R50: 2023 | S50: 0.0497 | T50: 0.0663 | U50: 1.0000
Q51: ООО "Альтера" | R51: 2024 | S51: 0.0489 | T51: 0.0653 | U51: 1.0000
P52: 11 | Q52: ООО СК "Восток" | R52: 2020 | S52: 0.2246 | T52: 0.1801 | U52: 1.0000
Q53: ООО СК "Восток" | R53: 2021 | S53: 0.2212 | T53: 0.1774 | U53: 1.0000
Q54: ООО СК "Восток" | R54: 2022 | S54: 0.2179 | T54: 0.1747 | U54: 1.0000
Q55: ООО СК "Восток" | R55: 2023 | S55: 0.2146 | T55: 0.1721 | U55: 1.0000
Q56: ООО СК "Восток" | R56: 2024 | S56: 0.2114 | T56: 0.1695 | U56: 1.0000
P57: 12 | Q57: ООО "Ханты-Мансийские городские электрические сети" | R57: 2020 | S57: 0.1789 | T57: 0.0937 | U57: 1.0709
Q58: ООО "Ханты-Мансийские городские электрические сети" | R58: 2021 | S58: 0.1762 | T58: 0.0923 | U58: 1.0548
Q59: ООО "Ханты-Мансийские городские электрические сети" | R59: 2022 | S59: 0.1736 | T59: 0.0909 | U59: 1.0390
Q60: ООО "Ханты-Мансийские городские электрические сети" | R60: 2023 | S60: 0.1710 | T60: 0.0895 | U60: 1.0234
Q61: ООО "Ханты-Мансийские городские электрические сети" | R61: 2024 | S61: 0.1684 | T61: 0.0882 | U61: 1.0080
P62: 13 | Q62: АО "Варьеганэнергонефть" | R62: 2020 | S62: 0.2866 | T62: 0.2285 | U62: 1.0000
Q63: АО "Варьеганэнергонефть" | R63: 2021 | S63: 0.2823 | T63: 0.2251 | U63: 1.0000
Q64: АО "Варьеганэнергонефть" | R64: 2022 | S64: 0.2780 | T64: 0.2217 | U64: 1.0000
Q65: АО "Варьеганэнергонефть" | R65: 2023 | S65: 0.2739 | T65: 0.2184 | U65: 1.0000
Q66: АО "Варьеганэнергонефть" | R66: 2024 | S66: 0.2697 | T66: 0.2151 | U66: 1.0000
P67: 14 | Q67: ООО "МегионЭнергоНефть" | R67: 2020 | S67: 0.0227 | T67: 0.0088 | U67: 1.0000
Q68: ООО "МегионЭнергоНефть" | R68: 2021 | S68: 0.0224 | T68: 0.0087 | U68: 1.0000
Q69: ООО "МегионЭнергоНефть" | R69: 2022 | S69: 0.0221 | T69: 0.0086 | U69: 1.0000
Q70: ООО "МегионЭнергоНефть" | R70: 2023 | S70: 0.0217 | T70: 0.0084 | U70: 1.0000
Q71: ООО "МегионЭнергоНефть" | R71: 2024 | S71: 0.0214 | T71: 0.0083 | U71: 1.0000
P72: 15 | Q72: ООО «ЭЛЕК» | R72: 2020 | S72: 0.2994 | T72: 0.1261 | U72: 1.0000
Q73: ООО «ЭЛЕК» | R73: 2021 | S73: 0.2949 | T73: 0.1242 | U73: 1.0000
Q74: ООО «ЭЛЕК» | R74: 2022 | S74: 0.2905 | T74: 0.1223 | U74: 1.0000
Q75: ООО «ЭЛЕК» | R75: 2023 | S75: 0.2862 | T75: 0.1205 | U75: 1.0000
Q76: ООО «ЭЛЕК» | R76: 2024 | S76: 0.2819 | T76: 0.1187 | U76: 1.0000
P77: 16 | Q77: АО «Аэропорт Сургут» | R77: 2020 | S77: 0.0000 | T77: 0.0000 | U77: 1.0000
Q78: АО «Аэропорт Сургут» | R78: 2021 | S78: 0.0000 | T78: 0.0000 | U78: 1.0000
Q79: АО «Аэропорт Сургут» | R79: 2022 | S79: 0.0000 | T79: 0.0000 | U79: 1.0000
Q80: АО «Аэропорт Сургут» | R80: 2023 | S80: 0.0000 | T80: 0.0000 | U80: 1.0000
Q81: АО «Аэропорт Сургут» | R81: 2024 | S81: 0.0000 | T81: 0.0000 | U81: 1.0000
P82: 17 | Q82: Филиал ОАО «РЖД» Трансэнерго Свердловская дирекция по энергообеспечению (по сетям Сургутской дистанции электроснабжения) | R82: 2020 | S82: 0.1653 | T82: 0.3151 | U82: 1.1382
Q83: Филиал ОАО «РЖД» Трансэнерго Свердловская дирекция по энергообеспечению (по сетям Сургутской дистанции электроснабжения) | R83: 2021 | S83: 0.1628 | T83: 0.3104 | U83: 1.1211
Q84: Филиал ОАО «РЖД» Трансэнерго Свердловская дирекция по энергообеспечению (по сетям Сургутской дистанции электроснабжения) | R84: 2022 | S84: 0.1604 | T84: 0.3057 | U84: 1.1043
Q85: Филиал ОАО «РЖД» Трансэнерго Свердловская дирекция по энергообеспечению (по сетям Сургутской дистанции электроснабжения) | R85: 2023 | S85: 0.1580 | T85: 0.3011 | U85: 1.0878
Q86: Филиал ОАО «РЖД» Трансэнерго Свердловская дирекция по энергообеспечению (по сетям Сургутской дистанции электроснабжения) | R86: 2024 | S86: 0.1556 | T86: 0.2966 | U86: 1.0715
P87: 18 | Q87: ООО «Газпром трансгаз Сургут» | R87: 2020 | S87: 0.0000 | T87: 0.0000 | U87: 1.0000
Q88: ООО «Газпром трансгаз Сургут» | R88: 2021 | S88: 0.0000 | T88: 0.0000 | U88: 1.0000
Q89: ООО «Газпром трансгаз Сургут» | R89: 2022 | S89: 0.0000 | T89: 0.0000 | U89: 1.0000
Q90: ООО «Газпром трансгаз Сургут» | R90: 2023 | S90: 0.0000 | T90: 0.0000 | U90: 1.0000
Q91: ООО «Газпром трансгаз Сургут» | R91: 2024 | S91: 0.0000 | T91: 0.0000 | U91: 1.0000
P92: 19 | Q92: ПАО «Сургутнефтегаз» | R92: 2020 | S92: 0.1518 | T92: 0.0438 | U92: 1.0000
Q93: ПАО «Сургутнефтегаз» | R93: 2021 | S93: 0.1495 | T93: 0.0432 | U93: 1.0000
Q94: ПАО «Сургутнефтегаз» | R94: 2022 | S94: 0.1473 | T94: 0.0425 | U94: 1.0000
Q95: ПАО «Сургутнефтегаз» | R95: 2023 | S95: 0.1451 | T95: 0.0419 | U95: 1.0000
Q96: ПАО «Сургутнефтегаз» | R96: 2024 | S96: 0.1429 | T96: 0.0412 | U96: 1.0000
P97: 20 | Q97: АО «ННК - Нижневартовское нефтегазодобывающее предприятие» | R97: 2020 | S97: 0, 0000 | T97: 0, 0000 | U97: 1.0000
Q98: АО «ННК - Нижневартовское нефтегазодобывающее предприятие» | R98: 2021 | S98: 0, 0000 | T98: 0, 0000 | U98: 1.0000
Q99: АО «ННК - Нижневартовское нефтегазодобывающее предприятие» | R99: 2022 | S99: 0, 0000 | T99: 0, 0000 | U99: 1.0000
Q100: АО «ННК - Нижневартовское нефтегазодобывающее предприятие» | R100: 2023 | S100: 0, 0000 | T100: 0, 0000 | U100: 1.0000
Q101: АО «ННК - Нижневартовское нефтегазодобывающее предприятие» | R101: 2024 | S101: 0, 0000 | T101: 0, 0000 | U101: 1.0000
P102: 21 | Q102: МУП «Сургутские районные электрические сети» муниципального образования Сургутский район | R102: 2020 | S102: 0.0012 | T102: 0.0057 | U102: 1.0000
Q103: МУП «Сургутские районные электрические сети» муниципального образования Сургутский район | R103: 2021 | S103: 0.0012 | T103: 0.0056 | U103: 1.0000
Q104: МУП «Сургутские районные электрические сети» муниципального образования Сургутский район | R104: 2022 | S104: 0.0011 | T104: 0.0055 | U104: 1.0000
Q105: МУП «Сургутские районные электрические сети» муниципального образования Сургутский район | R105: 2023 | S105: 0.0011 | T105: 0.0054 | U105: 1.0000
Q106: МУП «Сургутские районные электрические сети» муниципального образования Сургутский район | R106: 2024 | S106: 0.0011 | T106: 0.0054 | U106: 1.0000
P107: 22 | Q107: ООО «Луч-Электро» | R107: 2020 | S107: 0.0000 | T107: 0.0000 | U107: 1.0000
Q108: ООО «Луч-Электро» | R108: 2021 | S108: 0.0000 | T108: 0.0000 | U108: 1.0000
Q109: ООО «Луч-Электро» | R109: 2022 | S109: 0.0000 | T109: 0.0000 | U109: 1.0000
Q110: ООО «Луч-Электро» | R110: 2023 | S110: 0.0000 | T110: 0.0000 | U110: 1.0000
Q111: ООО «Луч-Электро» | R111: 2024 | S111: 0.0000 | T111: 0.0000 | U111: 1.0000
P112: 23 | Q112: ООО «РН-Юганскнефтегаз» | R112: 2020 | S112: 0.2520 | T112: 0.1352 | U112: 1.0000
Q113: ООО «РН-Юганскнефтегаз» | R113: 2021 | S113: 0.2482 | T113: 0.1332 | U113: 1.0000
Q114: ООО «РН-Юганскнефтегаз» | R114: 2022 | S114: 0.2445 | T114: 0.1312 | U114: 1.0000
Q115: ООО «РН-Юганскнефтегаз» | R115: 2023 | S115: 0.2408 | T115: 0.1292 | U115: 1.0000
Q116: ООО «РН-Юганскнефтегаз» | R116: 2024 | S116: 0.2372 | T116: 0.1273 | U116: 1.0000
P117: 24 | Q117: ООО «Газпром энерго» | R117: 2020 | S117: 0.0171 | T117: 0.0007 | U117: 1.0000
Q118: ООО «Газпром энерго» | R118: 2021 | S118: 0.0168 | T118: 0.0007 | U118: 1.0000
Q119: ООО «Газпром энерго» | R119: 2022 | S119: 0.0166 | T119: 0.0007 | U119: 1.0000
Q120: ООО «Газпром энерго» | R120: 2023 | S120: 0.0163 | T120: 0.0007 | U120: 1.0000
Q121: ООО «Газпром энерго» | R121: 2024 | S121: 0.0161 | T121: 0.0007 | U121: 1.0000
P122: 25 | Q122: ООО «Газпромнефть-Хантос» | R122: 2020 | S122: 0.0000 | T122: 0.0000 | U122: 1.0000
Q123: ООО «Газпромнефть-Хантос» | R123: 2021 | S123: 0.0000 | T123: 0.0000 | U123: 1.0000
Q124: ООО «Газпромнефть-Хантос» | R124: 2022 | S124: 0.0000 | T124: 0.0000 | U124: 1.0000
Q125: ООО «Газпромнефть-Хантос» | R125: 2023 | S125: 0.0000 | T125: 0.0000 | U125: 1.0000
Q126: ООО «Газпромнефть-Хантос» | R126: 2024 | S126: 0.0000 | T126: 0.0000 | U126: 1.0000
P127: 26 | Q127: АО «Вынгапуровский тепловодоканал» | R127: 2020 | S127: 0.0000 | T127: 0.0000 | U127: 1.0000
Q128: АО «Вынгапуровский тепловодоканал» | R128: 2021 | S128: 0.0000 | T128: 0.0000 | U128: 1.0000
Q129: АО «Вынгапуровский тепловодоканал» | R129: 2022 | S129: 0.0000 | T129: 0.0000 | U129: 1.0000
Q130: АО «Вынгапуровский тепловодоканал» | R130: 2023 | S130: 0.0000 | T130: 0.0000 | U130: 1.0000
Q131: АО «Вынгапуровский тепловодоканал» | R131: 2024 | S131: 0.0000 | T131: 0.0000 | U131: 1.0000
P132: 27 | Q132: АО «Уренгойгорэлектросеть» | R132: 2020 | S132: 0.3287 | T132: 0.1469 | U132: 1.0000
Q133: АО «Уренгойгорэлектросеть» | R133: 2021 | S133: 0.3238 | T133: 0.1447 | U133: 1.0000
Q134: АО «Уренгойгорэлектросеть» | R134: 2022 | S134: 0.3189 | T134: 0.1425 | U134: 1.0000
Q135: АО «Уренгойгорэлектросеть» | R135: 2023 | S135: 0.3141 | T135: 0.1404 | U135: 1.0000
Q136: АО «Уренгойгорэлектросеть» | R136: 2024 | S136: 0.3094 | T136: 0.1383 | U136: 1.0000
P137: 28 | Q137: АО «Ямальская железнодорожная компания» | R137: 2020 | S137: 0.0000 | T137: 0.0000 | U137: 1.0000
Q138: АО «Ямальская железнодорожная компания» | R138: 2021 | S138: 0.0000 | T138: 0.0000 | U138: 1.0000
Q139: АО «Ямальская железнодорожная компания» | R139: 2022 | S139: 0.0000 | T139: 0.0000 | U139: 1.0000
Q140: АО «Ямальская железнодорожная компания» | R140: 2023 | S140: 0.0000 | T140: 0.0000 | U140: 1.0000
Q141: АО «Ямальская железнодорожная компания» | R141: 2024 | S141: 0.0000 | T141: 0.0000 | U141: 1.0000
P142: 29 | Q142: ООО «Газпромнефть Энергосистемы» | R142: 2020 | S142: 0.0087 | T142: 0.0053 | U142: 1.0000
Q143: ООО «Газпромнефть Энергосистемы» | R143: 2021 | S143: 0.0086 | T143: 0.0052 | U143: 1.0000
Q144: ООО «Газпромнефть Энергосистемы» | R144: 2022 | S144: 0.0084 | T144: 0.0051 | U144: 1.0000
Q145: ООО «Газпромнефть Энергосистемы» | R145: 2023 | S145: 0.0083 | T145: 0.0051 | U145: 1.0000
Q146: ООО «Газпромнефть Энергосистемы» | R146: 2024 | S146: 0.0082 | T146: 0.0050 | U146: 1.0000
P147: 30 | Q147: АО «Энерго-Газ-Ноябрьск» | R147: 2020 | S147: 0.4090 | T147: 0.1739 | U147: 1.0000
Q148: АО «Энерго-Газ-Ноябрьск» | R148: 2021 | S148: 0.4028 | T148: 0.1713 | U148: 1.0000
Q149: АО «Энерго-Газ-Ноябрьск» | R149: 2022 | S149: 0.3968 | T149: 0.1687 | U149: 1.0000
Q150: АО «Энерго-Газ-Ноябрьск» | R150: 2023 | S150: 0.3909 | T150: 0.1662 | U150: 1.0000
Q151: АО «Энерго-Газ-Ноябрьск» | R151: 2024 | S151: 0.3850 | T151: 0.1637 | U151: 1.0000
P152: 31 | Q152: АО «Губкинские городские электрические сети» | R152: 2020 | S152: 0.1379 | T152: 0.0394 | U152: 1.0000
Q153: АО «Губкинские городские электрические сети» | R153: 2021 | S153: 0.1358 | T153: 0.0388 | U153: 1.0000
Q154: АО «Губкинские городские электрические сети» | R154: 2022 | S154: 0.1338 | T154: 0.0382 | U154: 1.0000
Q155: АО «Губкинские городские электрические сети» | R155: 2023 | S155: 0.1318 | T155: 0.0377 | U155: 1.0000
Q156: АО «Губкинские городские электрические сети» | R156: 2024 | S156: 0.1298 | T156: 0.0371 | U156: 1.0000
P157: 32 | Q157: МУП «Надымские городские электрические сети» | R157: 2020 | S157: 0.0684 | T157: 0.0235 | U157: 1.0000
Q158: МУП «Надымские городские электрические сети» | R158: 2021 | S158: 0.0674 | T158: 0.0231 | U158: 1.0000
Q159: МУП «Надымские городские электрические сети» | R159: 2022 | S159: 0.0664 | T159: 0.0228 | U159: 1.0000
Q160: МУП «Надымские городские электрические сети» | R160: 2023 | S160: 0.0654 | T160: 0.0224 | U160: 1.0000
Q161: МУП «Надымские городские электрические сети» | R161: 2024 | S161: 0.0644 | T161: 0.0221 | U161: 1.0000
P162: 33 | Q162: АО "Горэлектросеть" | R162: 2018 | S162: 0.1456 | T162: 0.0898 | U162: 1.0000
Q163: АО "Горэлектросеть" | R163: 2019 | S163: 0.1434 | T163: 0.0885 | U163: 1.0000
Q164: АО "Горэлектросеть" | R164: 2020 | S164: 0.1412 | T164: 0.0871 | U164: 1.0000
Q165: АО "Горэлектросеть" | R165: 2021 | S165: 0.1391 | T165: 0.0858 | U165: 1.0000
Q166: АО "Горэлектросеть" | R166: 2022 | S166: 0.1370 | T166: 0.0845 | U166: 1.0000
P167: 34 | Q167: АО "Россети Тюмень" | R167: 2018 | S167: 0.4560 | T167: 0.2061 | U167: 1.0313
Q168: АО "Россети Тюмень" | R168: 2019 | S168: 0.4492 | T168: 0.2030 | U168: 1.0158
Q169: АО "Россети Тюмень" | R169: 2020 | S169: 0.4424 | T169: 0.1999 | U169: 1.0006
Q170: АО "Россети Тюмень" | R170: 2021 | S170: 0.4358 | T170: 0.1969 | U170: 1.0000
Q171: АО "Россети Тюмень" | R171: 2022 | S171: 0.4292 | T171: 0.1940 | U171: 1.0000
P172: 35 | Q172: АО "Югорская территориальная энергетическая компания - Региональные сети" | R172: 2018 | S172: 1.2818 | T172: 0.2847 | U172: 1.0000
Q173: АО "Югорская территориальная энергетическая компания - Региональные сети" | R173: 2019 | S173: 1.2626 | T173: 0.2804 | U173: 1.0000
Q174: АО "Югорская территориальная энергетическая компания - Региональные сети" | R174: 2020 | S174: 1.2436 | T174: 0.2762 | U174: 1.0000
Q175: АО "Югорская территориальная энергетическая компания - Региональные сети" | R175: 2021 | S175: 1.2250 | T175: 0.2721 | U175: 1.0000
Q176: АО "Югорская территориальная энергетическая компания - Региональные сети" | R176: 2022 | S176: 1.2066 | T176: 0.2680 | U176: 1.0000
P177: 36 | Q177: ООО "Сургутские городские электрические сети" | R177: 2018 | S177: 0.0625 | T177: 0.0428 | U177: 1.0000
Q178: ООО "Сургутские городские электрические сети" | R178: 2019 | S178: 0.0615 | T178: 0.0422 | U178: 1.0000
Q179: ООО "Сургутские городские электрические сети" | R179: 2020 | S179: 0.0606 | T179: 0.0415 | U179: 1.0000
Q180: ООО "Сургутские городские электрические сети" | R180: 2021 | S180: 0.0597 | T180: 0.0409 | U180: 1.0000
Q181: ООО "Сургутские городские электрические сети" | R181: 2022 | S181: 0.0588 | T181: 0.0403 | U181: 1.0000
P182: 37 | Q182: АО "ЮРЭСК" | R182: 2018 | S182: 0.0042 | T182: 0.0444 | U182: 1.2090
Q183: АО "ЮРЭСК" | R183: 2019 | S183: 0.0041 | T183: 0.0438 | U183: 1.1915
Q184: АО "ЮРЭСК" | R184: 2020 | S184: 0.0040 | T184: 0.0431 | U184: 1.1736
Q185: АО "ЮРЭСК" | R185: 2021 | S185: 0.0040 | T185: 0.0425 | U185: 1.1566
Q186: АО "ЮРЭСК" | R186: 2022 | S186: 0.0039 | T186: 0.0418 | U186: 1.1392
Q187: ООО "Региональная энергетическая компания" | R187: 2020 | S187: 1.3980 | T187: 0.4456 | U187: 1.0000
P188: 38 | Q188: ООО "Региональная энергетическая компания" | R188: 2021 | S188: 0.4243 | T188: 0.1108 | U188: 1.0000
Q189: ООО "Региональная энергетическая компания" | R189: 2022 | S189: 0.4180 | T189: 0.1092 | U189: 1.0000
Q190: ООО "Региональная энергетическая компания" | R190: 2023 | S190: 0.4117 | T190: 0.1075 | U190: 1.0000
Q191: ООО "Региональная энергетическая компания" | R191: 2024 | S191: 0.4055 | T191: 0.1059 | U191: 1.0000
Q192: ООО "Региональная энергетическая компания" | R192: 2025 | S192: 0.3995 | T192: 0.1043 | U192: 1.0000
Q193: ООО "СеверСетьРазвитие" | R193: 2020 | S193: 2.2775 | T193: 0.4456 | U193: 1.0000
P194: 39 | Q194: ООО "СеверСетьРазвитие" | R194: 2021 | S194: 0.0000 | T194: 0.0000 | U194: 1.0000
Q195: ООО "СеверСетьРазвитие" | R195: 2022 | S195: 0.0000 | T195: 0.0000 | U195: 1.0000
Q196: ООО "СеверСетьРазвитие" | R196: 2023 | S196: 0.0000 | T196: 0.0000 | U196: 1.0000
Q197: ООО "СеверСетьРазвитие" | R197: 2024 | S197: 0.0000 | T197: 0.0000 | U197: 1.0000
Q198: ООО "СеверСетьРазвитие" | R198: 2025 | S198: 0.0000 | T198: 0.0000 | U198: 1.0000
Q199: ООО "Энергонефть Томск" | R199: 2020 | S199: 2.2775 | T199: 0.4456 | U199: 1.0000
P200: 40 | Q200: ООО "Энергонефть Томск" | R200: 2021 | S200: 0.0310 | T200: 0.2645 | U200: 1.0000
... 64 more rows
